Cogmind - Beta 10.2 @@@ ROGUE MODE // 2020.11.21 @ 10:42:02 // Halloween2020/ForbiddenLore Player: Boris Result: Destroyed by Gamma Bomb Trap Performance ------------- Evolutions (8) 4000 Regions Visited (32) 6400 Robots Destroyed (456) 2280 Value Destroyed (23042) 23042 Prototype IDs (244) 4880 Alien Tech Used (0) 0 Bonus (10898) 10898 TOTAL SCORE: 51500 Bonus ------- High Alert Combat Kills 4605 Follower Combat Kills 1508 Entered Garrisons 1600 Used RIF Installer 4000 Aligned with FarCom 300 Met Data Miner 300 Used Data Conduit 3000 Pursued by Intercept 500 Friendly Fire -4915 Cogmind --------- Core Integrity 0/1450 Matter 295/300 Energy 65/100 System Corruption 10% Temperature Cool (0) Movement Core (50) Location -2/Research Parts ------- > --- POWER (2) -------- (None) > --- PROPULSION (5) --- (None) > --- UTILITY (12) ----- (None) > --- WEAPON (4) ------- (None) > --- INVENTORY (4) ---- ME-RLN's Chromatic Screen ME-RLN's Wand Peak State ------------ > --- POWER ------------ Particle Reactor Light Quantum Reactor > --- PROPULSION ------- Biometal Leg Biometal Leg Biometal Leg Biometal Leg Biometal Leg > --- UTILITY ---------- Advanced Coolant Injector Large Storage Unit Large Storage Unit Large Storage Unit Advanced Signal Interpreter Advanced Target Analyzer Advanced Armor Integrity Analyzer Advanced Phase Shifter Advanced Phase Shifter Relay Coupler [NC] Relay Coupler [Sentry] > --- WEAPON ----------- Enhanced Nova Cannon Heavy Machine Gun KE Penetrator KE Penetrator > --- INVENTORY -------- Improved Heavy Treads Advanced Coolant Injector YI-UF0's Bottomless Matter Pit Damper Plating ME-RLN's Chromatic Screen Relay Coupler [NC] Relay Coupler [ARC] Relay Coupler [Swarmer] Relay Coupler [Sentry] Relay Coupler [Sentry] Advanced Component Analysis Suite Quantum Rifle Compact HERF Cannon 8R-AWN's Boregun Enhanced Gamma Bomb Array Enhanced Gamma Bomb Array Enhanced Gamma Bomb Array ME-RLN's Wand Ionic Axe [Rating: 148] Favorites ----------- Power Reinforced Fission Core Engine Improved Ion Engine Power Core Reinforced Fission Core Reactor Light Antimatter Reactor Propulsion Myomer Leg Treads Light Treads Leg Myomer Leg Wheel Armored Wheel Hover Unit Cooled Antigrav System Utility Large Storage Unit Device Advanced Sensor Array Storage Large Storage Unit Processor Advanced Signal Interpreter Hackware Relay Coupler [Grunt] Protection Light Armor Plating Weapon Flak Gun Energy Gun Plasma Rifle Energy Cannon Heavy Neutron Cannon Ballistic Gun Flak Gun Ballistic Cannon Heavy Gauss Cannon Launcher Grenade Launcher Special Weapon ME-RLN's Wand Slashing Weapon Katana Build | -11 -10 -10 -9 -9 -9 -8 -8 -8 -8 -8 -7 -7 -7 -7 -7 -7 -6 -6 -6 -6 -6 -5 -5 -4 -4 -4 -4 -4 -4 -3 -3 -2 ------- Run | Scr Mat Min Mat Min Exi Min Mat Gar Mat Gar Fac Was Fac Low Low Dat Pro Fac Gar Fac Gar Fac Gar Fac Was Fac Gar Fac Gar Res Gar Res Slots Evolved 16 | . . . 2 . . . 2 . . . 2 . . . . . . 2 . . . 2 . 2 . . . . . 2 . 2 Power 1 | . . . . . . . . . . . . . . . . . . . . . . . . 1 . . . . . . . . Propulsion 3 | . . . . . . . . . . . 1 . . . . . . 1 . . . . . 1 . . . . . . . . Utility 10 | . . . 1 . . . 2 . . . 1 . . . . . . 1 . . . 2 . . . . . . . 1 . 2 Weapon 2 | . . . 1 . . . . . . . . . . . . . . . . . . . . . . . . . . 1 . . Parts Attached 676 | 7 12 11 25 4 23 26 36 24 4 18 58 6 15 18 22 4 3 10 28 19 16 7 22 13 7 40 20 22 25 26 49 56 Power 34 | 1 1 1 1 . 3 . 1 2 . 1 . 2 . . . . . 1 . 1 2 . 1 2 . 2 2 1 2 2 2 3 Engine 11 | 1 1 1 1 . 1 . . 2 . 1 . . . . . . . . . 1 2 . . . . . . . . . . . Core 9 | . . . . . 2 . 1 . . . . . . . . . . 1 . . . . 1 1 . 1 1 1 . . . . Reactor 14 | . . . . . . . . . . . . 2 . . . . . . . . . . . 1 . 1 1 . 2 2 2 3 Propulsion 76 | 2 2 1 4 1 5 2 4 2 . 3 1 . . . 1 . . 1 . 2 3 . 2 1 2 7 2 4 1 . 11 12 Treads 20 | 1 . 1 3 1 2 . 2 2 . 1 . . . . 1 . . . . . . . . 1 2 . 1 1 . . . 1 Leg 47 | . . . . . 3 1 2 . . . . . . . . . . . . 2 3 . 2 . . 7 1 3 1 . 11 11 Wheel 8 | 1 2 . 1 . . . . . . 2 1 . . . . . . 1 . . . . . . . . . . . . . . Hover 1 | . . . . . . 1 . . . . . . . . . . . . . . . . . . . . . . . . . . Flight . | . . . . . . . . . . . . . . . . . . . . . . . . . . . . . . . . . Utility 172 | 1 3 2 3 . 8 7 10 7 2 8 22 1 9 5 4 2 . 2 5 5 5 2 4 3 5 7 7 4 7 5 8 9 Device 56 | . . . . . 4 3 6 3 1 . 8 . 5 3 2 2 . 1 . . 1 . . 1 2 2 1 1 1 1 4 4 Storage 29 | 1 2 2 1 . 2 4 2 . . 4 1 . 1 1 1 . . . . . . 1 1 . 1 2 . . 1 1 . . Processor 8 | . 1 . . . . . 1 . . . . 1 . . . . . . . . 1 . . . 1 . . . . . . 3 Hackware 37 | . . . . . . . . . 1 . 6 . . . . . . 1 3 4 2 1 3 1 . . 5 1 3 2 4 . Protection 42 | . . . 2 . 2 . 1 4 . 4 7 . 3 1 1 . . . 2 1 1 . . 1 1 3 1 2 2 1 . 2 Artifact . | . . . . . . . . . . . . . . . . . . . . . . . . . . . . . . . . . Weapon 394 | 3 6 7 17 3 7 17 21 13 2 6 35 3 6 13 17 2 3 6 23 11 6 5 15 7 . 24 9 13 15 19 28 32 Energy Gun 25 | 2 3 . 6 . . 1 1 . . . . . 1 . . . . . . . . . . . . 3 1 2 1 1 3 . Energy Cannon 47 | . 1 1 2 . . 2 6 2 . 1 . . . . 2 . . . . . . . . . . 2 . 4 4 4 10 6 Ballistic Gun 176 | 1 1 2 9 2 6 9 8 9 . 2 22 3 4 9 14 . 1 . 17 4 3 . 6 4 . 13 2 1 3 6 5 10 Ballistic Cannon 9 | . . . . . . . . . . . . . . . . . . . . . 1 2 3 . . 1 . . . 2 . . Launcher 36 | . 1 2 . 1 . 3 3 1 . 1 . . 1 3 . 1 . 1 . . . . . . . 1 2 1 3 2 1 8 Special Weapon 58 | . . . . . . 1 . . 1 1 7 . . . . . . 3 3 3 2 3 3 3 . 3 2 3 4 4 7 5 Impact Weapon . | . . . . . . . . . . . . . . . . . . . . . . . . . . . . . . . . . Slashing Weapon 43 | . . 2 . . 1 1 3 1 1 1 6 . . 1 1 1 2 2 3 4 . . 3 . . 1 2 2 . . 2 3 Piercing Weapon . | . . . . . . . . . . . . . . . . . . . . . . . . . . . . . . . . . Special Melee Weapon . | . . . . . . . . . . . . . . . . . . . . . . . . . . . . . . . . . Unidentified Prototypes 15 | . . 1 1 . 6 4 2 . . . . . 1 . . . . . . . . . . . . . . . . . . . Parts Lost 78 | . 1 2 . . 1 3 4 2 . 2 1 . 1 . 3 2 . 1 1 1 1 . 2 . . 6 5 1 3 4 4 27 Power 13 | . . 1 . . . . 1 1 . 1 . . . . . 1 . . . . . . 1 . . . 1 . 1 . . 5 Propulsion 17 | . . . . . . . 1 1 . . . . . . . . . . . 1 . . . . . . 2 . . 1 1 10 Utility 18 | . . . . . 1 . 1 . . 1 1 . 1 . 1 1 . . 1 . 1 . . . . 3 1 . 1 . 1 3 Weapon 30 | . 1 1 . . . 3 1 . . . . . . . 2 . . 1 . . . . 1 . . 3 1 1 1 3 2 9 Highest Loss Streak 20 | . 1 2 . . 1 3 1 1 . 1 1 . 1 . 1 2 . 1 1 1 1 . 1 . . 2 4 1 2 2 2 20 Average Slot Usage (%) 92 | . 99 98 99 100 99 99 97 99 100 98 83 84 83 82 83 78 76 75 85 85 97 88 93 96 86 85 90 96 95 92 96 84 Engine 3 | . 14 13 11 11 8 . . 5 9 8 7 1 . . . . . . . 4 6 5 2 . . . . . . . . . Core 2 | . . . . . 2 11 9 3 . . . . . . . . . 5 6 1 . . 2 5 5 5 3 5 5 4 2 . Reactor 1 | . . . . . . . . . . . . 5 7 7 7 3 . . . . . . . 5 5 5 5 5 3 4 6 6 Treads 4 | . 14 14 11 11 14 . 1 12 18 13 . . . . . 7 7 6 6 3 . . . 2 4 2 1 1 . . . . Leg 9 | . . . . . 2 21 16 5 . . . . . . . . . . . 2 24 23 23 21 17 21 18 22 26 22 22 19 Wheel 5 | . 14 14 11 11 4 . . . . 4 15 15 15 15 14 7 7 5 6 6 . . . . . . . . . . . . Device 5 | . . . . . . . 9 1 5 . 6 . 5 5 7 15 23 20 13 . 1 . . 2 2 6 13 10 10 8 7 6 Storage 17 | . 25 27 30 33 30 32 27 27 27 27 15 15 9 15 14 11 7 6 6 6 6 6 10 10 9 10 10 10 12 14 14 12 Processor 7 | . 2 . . . . . 6 9 9 9 7 14 15 15 15 15 15 13 13 13 16 11 11 10 10 10 9 5 5 4 4 10 Hackware 6 | . . . . . . . . . 3 1 7 7 4 . . . . 2 10 23 18 15 17 17 9 3 9 15 13 12 17 11 Protection 1 | . . . 2 . 1 . . 7 . 6 . . . 1 . . . . 1 1 1 5 5 5 4 4 1 4 2 . . . Energy Gun 1 | . 7 . 10 . . . . . . . . . . . . . . . . . . . . . . . 1 2 3 . 1 . Energy Cannon 1 | . 6 10 1 . . . 3 . 9 8 . . . . . . . . . . . . . . . . . 2 4 3 2 . Ballistic Gun 14 | . 13 2 21 22 27 23 15 17 9 9 19 22 22 20 20 5 . . 13 14 15 11 9 13 15 12 4 4 6 10 9 11 Launcher 1 | . . 10 . 11 4 . 1 . . . . . . . . 5 7 5 . . . . . . . . . . . . . . Slashing Weapon 2 | . . 4 . . 1 7 7 8 7 9 1 . . . . 5 6 4 3 4 . . 2 . . . 1 1 . . 1 . Naked Turns 17 | . . . . . . . . . . . . . . . . . . . . . . . . . . . . . . . . 17 Heaviest Build 156 | 11 42 43 66 68 80 84 87 70 63 69 47 49 50 57 55 55 37 45 46 41 62 70 70 81 119 143 142 108 121 156 126 145 Greatest Support 140 | 10 16 20 20 22 60 60 60 40 40 40 40 40 40 40 40 12 12 28 70 28 95 95 95 90 90 130 130 125 125 120 125 140 Greatest Overweight (x) 6 | 1 4 2 6 6 6 2 2 6 1 5 1 1 1 1 4 4 3 3 1 1 1 . . 3 1 1 4 1 1 1 1 1 Average Overweight (x) 1 | . 2 1 4 5 3 1 1 1 1 1 . . . 1 1 2 2 1 . 1 . . . . . . . . . . . . Largest Inventory Capacity 36 | 6 16 16 22 22 22 22 22 22 22 36 30 30 30 30 30 10 10 10 10 10 10 14 14 14 14 16 16 16 22 28 22 22 Average Capacity 19 | 5 14 15 20 22 20 21 22 22 22 22 30 30 26 30 24 10 10 10 10 10 10 10 13 14 13 14 16 16 19 22 22 21 Most Carried 30 | 5 16 16 22 22 22 22 22 22 22 27 30 30 30 30 30 10 10 10 10 10 10 10 14 14 14 16 16 16 22 22 22 22 Average Carried 18 | 2 14 15 19 21 18 21 21 21 22 21 28 29 24 26 23 9 9 9 9 9 9 10 11 13 12 13 15 15 17 21 20 20 Final Capacity 36 | 6 16 16 22 22 22 22 22 22 22 36 30 30 30 30 10 10 10 10 10 10 10 14 14 14 14 16 16 16 22 22 22 4 Final Carried 30 | 5 16 14 21 22 22 22 22 22 22 27 27 30 23 30 10 9 10 10 10 10 10 10 14 14 13 16 16 16 21 22 22 2 Class Distribution -------------------- 24% | Hauler-Mutant 14% | Bothacker-Mutant 9% | Scavenger-Mutant 9% | Mutant 8% | Hauler-Gunner 7% | Botlord-Mutant 7% | Hauler-Skirmisher 6% | Scavenger-Gunner 3% | Bothacker-Gunner Dominant Class ---------------- Mutant | -10/Materials Mutant | -10/Mines Hauler-Gunner | -9/Materials Hauler-Mutant | -9/Mines Hauler-Mutant | -9/Exiles Hauler-Mutant | -8/Mines Hauler-Mutant | -8/Materials Hauler-Mutant | -8/Garrison Hauler-Mutant | -8/Materials Hauler-Mutant | -8/Garrison Hauler-Skirmisher | -7/Factory Hauler-Gunner | -7/Waste Hauler-Skirmisher | -7/Factory Hauler-Skirmisher | -7/Lower Caves Hauler-Skirmisher | -7/Lower Caves Scavenger-Mutant | -7/Data Miner Scavenger-Mutant | -6/Proximity Caves Mutant | -6/Factory Bothacker-Mutant | -6/Garrison Bothacker-Mutant | -6/Factory Scavenger-Gunner | -6/Garrison Bothacker-Mutant | -5/Factory Bothacker-Mutant | -5/Garrison Bothacker-Mutant | -4/Factory Scavenger-Gunner | -4/Waste Scavenger-Gunner | -4/Factory Bothacker-Mutant | -4/Garrison Bothacker-Mutant | -4/Factory Botlord-Mutant | -4/Garrison Botlord-Gunner | -3/Research Botlord-Mutant | -3/Garrison Botlord-Mutant | -2/Research Resources | -11 -10 -10 -9 -9 -9 -8 -8 -8 -8 -8 -7 -7 -7 -7 -7 -7 -6 -6 -6 -6 -6 -5 -5 -4 -4 -4 -4 -4 -4 -3 -3 -2 ----------- Run | Scr Mat Min Mat Min Exi Min Mat Gar Mat Gar Fac Was Fac Low Low Dat Pro Fac Gar Fac Gar Fac Gar Fac Was Fac Gar Fac Gar Res Gar Res Matter Collected 20262 | 203 516 705 463 72 1281 1082 916 718 . 388 1041 862 407 437 861 304 92 234 1531 313 448 145 770 274 394 1350 749 571 767 543 641 1184 Remotely 52 | . . . . . . . . 52 . . . . . . . . . . . . . . . . . . . . . . . . Salvage Created 24361 | 62 366 341 535 30 422 663 1982 747 . 834 736 1716 435 483 393 70 . 706 1268 442 598 . 638 535 1666 2893 215 455 692 903 878 2657 Parts 1106 | 2 27 12 27 8 54 38 101 43 . 35 41 33 33 28 17 . . 29 50 23 37 . 26 20 29 114 14 17 25 48 36 139 Haulers Intercepted 13 | . 2 . 1 . . . 4 . . . . . 1 . . . . . . 1 . . . 1 . 1 . . . 1 . 1 Recyclers Shooed 15 | . 1 . 2 . . 1 3 . . . 1 . . . . . . 1 . . . . . . . 4 . . . 1 . 1 Parts Field Recycled . | . . . . . . . . . . . . . . . . . . . . . . . . . . . . . . . . . Retrieved Matter . | . . . . . . . . . . . . . . . . . . . . . . . . . . . . . . . . . Parts Self-Destructed 41 | . . . . . . . . . . . . . . 24 17 . . . . . . . . . . . . . . . . . Prevented . | . . . . . . . . . . . . . . . . . . . . . . . . . . . . . . . . . Kills | -11 -10 -10 -9 -9 -9 -8 -8 -8 -8 -8 -7 -7 -7 -7 -7 -7 -6 -6 -6 -6 -6 -5 -5 -4 -4 -4 -4 -4 -4 -3 -3 -2 ------- Run | Scr Mat Min Mat Min Exi Min Mat Gar Mat Gar Fac Was Fac Low Low Dat Pro Fac Gar Fac Gar Fac Gar Fac Was Fac Gar Fac Gar Res Gar Res Combat Hostiles Destroyed 359 | . 10 6 12 4 5 14 33 16 . 9 11 6 8 17 8 4 . 14 21 4 10 . 16 4 6 40 16 3 17 11 10 24 Melee 12 | . . . . . . . . . . 3 1 . . . . . . 1 1 1 . . 4 . . . . . . . 1 . Guns 193 | . 8 3 11 . 5 6 11 14 . 2 10 6 7 5 8 . . . 20 3 8 . 3 4 6 33 2 1 3 2 1 11 Cannons 35 | . . 1 . . . . . . . 1 . . . . . . . . . . 2 . 9 . . 3 5 . 5 6 1 2 AOE 98 | . 2 2 . 4 . 7 21 1 . 1 . . 1 12 . 4 . 13 . . . . . . . 4 9 1 9 3 1 3 Classes Destroyed 23 | 1 5 1 1 . 3 4 . . . 1 1 1 . 1 1 . . 2 . . . . . . . . 1 . . . . . Worker 19 | . . . . . . 1 2 . . . 1 . . . . . . 5 . . . . . . . 1 . 1 . 4 . 4 Builder 21 | . . . . . . 1 4 . . . 1 . 2 . . . . 1 . . . . . 2 . 2 . . . 3 . 5 Tunneler 4 | . . 1 . . . . 1 . . . . . . . . . . . . . . . . 1 . . . 1 . . . . Hauler 13 | . 2 . 1 . . . 4 . . . . . 1 . . . . . . 1 . . . 1 . 1 . . . 1 . 1 Recycler 5 | 1 . . . . . 1 . . . . . . 1 . . . . 1 . . . . . . . . . . . . . 1 Minesweeper 2 | . . . . . . . . . . . . . . 1 1 . . . . . . . . . . . . . . . . . Mechanic 1 | . . . . . . . . . . . . . . . . . . 1 . . . . . . . . . . . . . . Operator 7 | . 1 . 1 . . . 2 . . . . . 1 . . . . 1 . . . . . . . . . 1 . . . . Turret 1 | . . . . . 1 . . . . . . . . . . . . . . . . . . . . . . . . . . . Watcher 9 | . 1 . . . . . 2 . . . 1 . 1 . . . . 1 . . 2 . . . . . . . . . . 1 Swarmer 81 | . 6 . . 4 . 4 7 3 . . 3 . 4 12 2 . . . 2 . . . 7 . . 1 13 . 13 . . . Grunt 145 | . 4 6 9 . . 7 19 7 . 2 3 . 3 4 4 . . 9 16 2 6 . 3 2 . 18 . 1 3 4 3 10 Brawler 11 | . . . . . . . . . . 1 1 . . . . . . 2 . . . . . 1 . 3 2 1 . . . . Duelist 11 | . . . . . . 2 . 1 . . . . . . . . . 2 . . . . . . . 6 . . . . . . Protector 3 | . . . . . . . . . . . . . . . . . . 1 . . . . . . . 2 . . . . . . Sentry 44 | . . . 3 . . . 5 5 . 5 4 . 1 1 1 . . . 3 2 2 . 4 2 . 2 . 2 . . 2 . Hunter 25 | . . . . . . 1 2 . . 1 . . . . . . . . . 1 1 . . . . 2 . . . 1 6 10 Programmer 22 | . . . . . . . . . . . 2 . . . . . . . . 1 1 . 2 . . 6 . . . 4 . 6 Behemoth 3 | . . . . . . . . . . . . . . . . . . . . . . . . . . . 1 1 1 . . . Compactor 12 | . . . . . . . . . . . . 6 . . . . . . . . . . . . 6 . . . . . . . Enhanced Grunt 4 | . . . . . . . . . . . . . . . . 4 . . . . . . . . . . . . . . . . Combat Programmer 2 | . . . . . . . . . . . . . . . . . . . . . . . . . . . . . . 2 . . Zionite 6 | . . . . . 6 . . . . . . . . . . . . . . . . . . . . . . . . . . . Packrat 1 | . . . . . . . . . . . . . . 1 . . . . . . . . . . . . . . . . . . Master Thief 1 | . . . . . . . . . . . . . . . 1 . . . . . . . . . . . . . . . . . Assembled 4 | . . . . . 4 . . . . . . . . . . . . . . . . . . . . . . . . . . . Best Kill Streak 13 | 1 4 3 2 4 2 5 11 3 . 2 2 2 4 6 4 4 . 8 4 1 4 . 8 5 2 9 8 2 7 10 2 13 Combat Bots Only 9 | . 3 3 2 4 2 5 8 3 . 2 2 2 4 6 4 4 . 5 4 1 4 . 8 2 2 9 8 1 7 5 2 6 Max Kills in Single Turn 4 | 1 1 1 2 4 2 4 4 2 . 1 2 1 1 3 1 2 . 4 2 1 2 . 1 1 1 4 3 3 2 3 1 3 Gunslinging 1 | . . . 1 . 1 . . . . . . . . . . . . . 1 . 1 . . . . . . . . . . 1 Exploded 4 | . 1 1 . 4 . 4 3 1 . 1 . . 1 3 . 2 . 3 . . . . . . . 4 3 1 2 2 1 2 Melee 1 | . . . . . . . . . . 1 1 . . . . . . 1 1 1 . . 1 . . . . . . . 1 . Uniques/NPCs Destroyed 5 | . . 1 . . 4 . . . . . . . . . . . . . . . . . . . . . . . . . . . YI-UF0 (-10/Mines) 8R-AWN (-9/Exiles) EX-DEC (-9/Exiles) EX-BIN (-9/Exiles) EX-HEX (-9/Exiles) Combat | -11 -10 -10 -9 -9 -9 -8 -8 -8 -8 -8 -7 -7 -7 -7 -7 -7 -6 -6 -6 -6 -6 -5 -5 -4 -4 -4 -4 -4 -4 -3 -3 -2 -------- Run | Scr Mat Min Mat Min Exi Min Mat Gar Mat Gar Fac Was Fac Low Low Dat Pro Fac Gar Fac Gar Fac Gar Fac Was Fac Gar Fac Gar Res Gar Res Damage Taken 23690 | . 379 443 498 108 597 963 860 364 . 566 555 . 319 271 398 256 45 157 823 358 654 20 1155 366 . 3676 676 273 745 1377 1017 5771 Core 3294 | . 86 80 100 10 48 158 134 45 . 68 55 . . 21 53 . . 51 116 57 127 . 104 16 . 168 78 . 57 111 89 1462 Absorbed by Shields 2168 | . . . . . 203 55 . . . 298 . . . . . . . . 25 . 109 . 250 . . 18 305 66 558 108 173 . Reduced by Siege Mode 9 | . . . . . . . . . . . . . . . . . . . 9 . . . . . . . . . . . . . Core Remaining (%) 65 | 100 . 33 . . . 21 . . . 55 . . . . . . 81 . . . 58 . 89 . . . . . 72 . 84 . Volleys Fired 1198 | 2 38 29 38 2 49 47 73 43 1 55 52 26 26 20 31 10 7 19 73 17 35 7 46 18 21 113 37 25 58 47 58 75 Largest 4 | 2 2 2 3 1 3 3 2 2 1 1 3 3 3 3 3 1 1 1 3 3 3 1 3 3 3 3 3 3 3 4 4 4 Hottest 243 | 70 80 84 150 30 81 85 93 63 30 63 84 84 84 84 90 46 33 46 89 89 113 57 113 99 99 141 166 218 218 243 233 216 Shots Fired 2281 | 4 68 37 104 2 89 86 108 77 1 55 104 76 72 39 74 10 7 19 143 37 86 7 88 48 63 261 55 26 94 90 80 171 Gun 1750 | 4 61 15 99 . 89 77 72 69 . 25 92 76 69 32 71 . 7 . 131 32 67 . 44 45 63 244 23 3 37 46 29 128 Cannon 301 | . 5 17 5 . . 1 12 4 . 23 . . . . 3 . . . . . 16 1 38 . . 13 21 18 38 36 29 21 Launcher 127 | . 2 5 . 2 . 7 24 4 . 6 . . 3 7 . 10 . 14 . . . . . . . 1 7 1 12 3 5 14 Special 103 | . . . . . . 1 . . 1 1 12 . . . . . . 5 12 5 3 6 6 3 . 3 4 4 7 5 17 8 Kinetic 1724 | 2 36 15 62 . 89 73 72 69 . 25 92 76 69 32 71 . 7 . 131 32 83 1 82 45 63 242 36 5 19 45 22 128 Thermal 207 | 2 30 17 31 . . . 11 . . . . . . . 3 . . . . . . . . . . 2 8 12 48 22 8 13 Explosive 71 | . 2 5 . 2 . 2 2 . . . . . 3 7 . 10 . 14 . . . . . . . 1 7 1 12 3 . . Electromagnetic 176 | . . . 11 . . 10 23 8 . 29 . . . . . . . . . . . . . . . 13 . 4 8 15 33 22 Robot Hit Streak 22 | 1 10 4 12 . 13 5 11 20 . 15 14 10 12 14 7 10 . 19 21 20 14 5 8 10 21 22 15 13 11 7 9 10 Robot Miss Streak 12 | 1 2 3 5 2 5 12 3 3 . 2 11 6 11 4 12 . . . 2 2 4 . 2 3 3 3 6 1 4 2 6 4 Penetration Max 2 | . . . . . 1 . 1 . . . 1 . . 1 . . . . 1 . 1 . 1 1 . 1 1 . . 2 . 2 Secondary Targets 35 | . . . 1 . 1 4 . 1 . . 1 . 1 1 2 . . . 3 . 1 . . 1 2 14 . . . . . 2 Max Gunslinging Chain 1 | . . . 1 . 1 1 . 1 . . 1 . 1 1 1 . . . 1 . 1 . . 1 1 1 . . . . . 1 Shots Hit Robots 1508 | 2 46 36 78 . 65 45 69 51 . 58 69 71 50 26 59 9 . 12 94 31 43 5 53 36 42 182 35 17 43 45 38 98 Core Hits 1043 | 2 20 17 31 4 45 38 71 22 . 22 57 80 54 45 37 21 . 46 38 10 21 . 23 18 17 106 25 10 30 34 20 79 Critical Hits 113 | . . . . . 10 4 7 7 . 1 7 . . 2 2 . . . 12 1 4 . 5 4 6 15 3 . 2 4 1 16 Critical Kills 50 | . . . . . 4 1 4 5 . 1 3 . . 1 1 . . . 4 1 2 . 4 2 3 7 1 . . 1 . 5 Critical Parts Destroyed 54 | . . . . . 3 3 2 2 . . 4 . . 1 1 . . . 7 . 2 . 1 2 1 8 1 . 1 3 1 11 Melee Attacks 183 | . . 11 . . 5 . 8 51 . 22 11 . . 1 1 1 3 9 11 11 . . 18 . . 1 6 6 . . 4 3 Impact . | . . . . . . . . . . . . . . . . . . . . . . . . . . . . . . . . . Slashing 183 | . . 11 . . 5 . 8 51 . 22 11 . . 1 1 1 3 9 11 11 . . 18 . . 1 6 6 . . 4 3 Piercing . | . . . . . . . . . . . . . . . . . . . . . . . . . . . . . . . . . Sneak Attacks 29 | . . 6 . . . . 1 . . 1 2 . . . . 1 . 1 . 6 . . 1 . . . 4 3 . . 2 1 Combat Hostiles 10 | . . . . . . . . . . 1 2 . . . . . . 1 . 3 . . 1 . . . . . . . 2 . Follow-up Attacks . | . . . . . . . . . . . . . . . . . . . . . . . . . . . . . . . . . Damage Inflicted 55477 | 26 706 1163 1157 140 1522 1290 3835 1002 . 2145 1315 1910 942 1730 751 1609 . 2879 2163 1237 1186 . 2056 1019 1268 6332 3092 1126 2381 2810 1592 5093 Guns 26464 | 26 535 184 1077 . 1361 645 890 821 . 331 1144 1910 555 559 751 . . . 2129 589 857 . 409 1019 1268 5481 279 79 323 709 238 2295 Cannons 7218 | . 52 226 77 . . . 192 80 . 541 . . . . . . . . . . 329 . 1031 . . 408 575 349 831 1016 845 666 Explosions 16818 | . 119 278 . 140 . 645 2645 101 . 303 . . 387 1171 . 1502 . 2713 . . . . . . . 443 1703 207 1227 1071 196 1967 Melee 4737 | . . 420 . . 46 . 108 . . 970 171 . . . . 107 . 166 34 648 . . 616 . . . 535 491 . . 313 112 Ramming 240 | . . 55 3 . 115 . . . . . . . . . . . . . . . . . . . . . . . . 14 . 53 Kinetic 27393 | . 268 184 626 . 1361 610 890 821 . 331 1144 1910 555 559 751 . . . 2129 589 1186 . 1440 1019 1268 5450 781 146 170 725 185 2295 Thermal 4400 | 26 319 226 389 . . . 686 64 . 30 . . . . . . . 4 . . . . . . . 31 73 137 636 694 95 990 Explosive 11386 | . 119 278 . 140 . 282 231 . . . . . 387 1171 . 1502 . 2709 . . . . . . . 359 1703 207 1227 1071 . . Electromagnetic 7321 | . . . 139 . . 398 1920 117 . 814 . . . . . . . . . . . . . . . 492 . 145 348 306 999 1643 Impact . | . . . . . . . . . . . . . . . . . . . . . . . . . . . . . . . . . Slashing 4737 | . . 420 . . 46 . 108 . . 970 171 . . . . 107 . 166 34 648 . . 616 . . . 535 491 . . 313 112 Piercing . | . . . . . . . . . . . . . . . . . . . . . . . . . . . . . . . . . Highest Corruption 18 | . . . 1 1 1 5 3 3 3 3 2 2 2 2 3 2 2 . . . 2 . 13 . 9 16 17 18 18 1 1 9 Average Corruption 5 | . . . 1 1 1 4 3 3 3 3 1 2 2 2 2 2 2 . . . 2 . 8 . 7 10 16 17 18 1 1 6 Corruption Purged 1 | . . . . . . . . . . . . . . . 1 . . . . . . . . . . . . . . . . . Effects 498 | . . . . 5 8 27 24 23 . 15 4 6 9 6 4 5 9 . . . 3 . 31 . 21 78 58 43 78 2 3 36 Message Errors 92 | . . . . 2 3 3 7 6 . 2 2 . 4 5 1 2 4 . . . . . 4 . 4 10 8 5 14 1 1 4 Matter Fused 76 | . . . . . . 3 8 8 . 5 . . . . 1 . . . . . . . 5 . 6 8 12 5 10 . . 5 Heat Flow Errors 50 | . . . . . . 6 5 3 . . . 1 1 . 2 1 4 . . . . . 2 . 2 3 8 5 6 . . 1 Energy Discharges 45 | . . . . 1 2 4 1 1 . 3 1 2 . 1 . . 1 . . . 1 . 5 . 3 5 2 5 5 . . 2 Parts Rejected 2 | . . . . . . . . . . . . . . . . . . . . . . . . . 1 1 . . . . . . Data Loss (minor) 44 | . . . . 2 3 3 1 1 . . 1 . 2 . . 1 . . . . 2 . 2 . 2 9 3 4 2 . 1 5 Data Loss (major) 11 | . . . . . . 1 . . . . . . . . . . . . . . . . 4 . . 1 3 . 2 . . . Misfires 16 | . . . . . . 3 . . . . . . . . . . . . . . . . 1 . . 2 2 1 5 . . 2 Alerts 3 | . . . . . . . . . . . . . . . . . . . . . . . . . . 1 . 1 1 . . . Misdirections 36 | . . . . . . . . . . . . . . . . . . . . . . . 2 . . 3 8 9 14 . . . Targeting Errors 102 | . . . . . . 3 . 3 . 5 . 1 2 . . 1 . . . . . . 6 . 3 27 12 4 17 1 1 16 Weapon Failures 21 | . . . . . . 1 2 1 . . . 2 . . . . . . . . . . . . . 8 . 4 2 . . 1 Overload Shots . | . . . . . . . . . . . . . . . . . . . . . . . . . . . . . . . . . Overflow Damage 1502 | . 13 86 . . 37 9 57 . . 65 45 . 11 . . 31 . 203 . 73 . . 41 . . 15 370 213 35 88 11 99 Projectiles 151 | . . 13 . . . . 1 . . . . . . . . . . . . . . . 41 . . 15 . 15 . 58 8 . Explosions 526 | . 13 . . . . 9 56 . . . . . 11 . . 31 . 118 . . . . . . . . 124 . 35 30 . 99 Melee 825 | . . 73 . . 37 . . . . 65 45 . . . . . . 85 . 73 . . . . . . 246 198 . . 3 . Knockbacks 16 | . . . . . 3 . . . . . . . . . . . . . . . 1 . 9 . . . . 2 . 1 . . Impact 3 | . . . . . 3 . . . . . . . . . . . . . . . . . . . . . . . . . . . Kinetic 11 | . . . . . . . . . . . . . . . . . . . . . 1 . 8 . . . . 1 . 1 . . Secondary 2 | . . . . . . . . . . . . . . . . . . . . . . . 1 . . . . 1 . . . . Self-Inflicted Damage 860 | . . 29 . 38 . 116 41 6 . 21 . . . . . . . 97 . . . . . . . 1 99 . 92 65 78 177 Shots 49 | . . 2 . 1 . 5 3 1 . 2 . . . . . . . 3 . . . . . . . 1 2 . 2 1 11 15 Rammed 42 | . . 18 1 . 22 . . . . . . . . . . . . . . . . . . . . . . . . . . 1 Targets Rammed 53 | . . 18 1 . 24 . . . . . . . . . . . . . . . . . . . . . . . . 1 . 9 Kicked 9 | . . . . . . . . . . . . . . . . . . . . . . . . . . . . . . 1 . 8 Crushed 2 | . . . . . 2 . . . . . . . . . . . . . . . . . . . . . . . . . . . Highest Temperature 407 | 18 144 231 245 . 222 255 279 223 . 174 78 192 324 72 256 73 215 5 34 22 80 10 332 274 407 182 195 210 196 199 199 196 Average Temperature 84 | 10 51 106 72 . 96 92 68 76 . 44 30 23 58 23 98 20 98 5 10 8 22 5 100 112 155 35 83 89 92 116 84 66 Received Heat Transfer 4197 | . 138 231 273 . . 174 369 153 . 144 165 . 99 51 162 42 . 30 267 90 94 9 96 96 . 564 52 30 74 213 50 531 Effects 12 | . . . . . . 2 . . . . . . . . 2 . . . . . . . 1 . 7 . . . . . . . Shutdowns 3 | . . . . . . . . . . . . . . . . . . . . . . . . . 3 . . . . . . . Energy Bleed 2 | . . . . . . . . . . . . . . . 1 . . . . . . . . . 1 . . . . . . . Interference 5 | . . . . . . 2 . . . . . . . . 1 . . . . . . . . . 2 . . . . . . . Matter Decay 1 | . . . . . . . . . . . . . . . . . . . . . . . 1 . . . . . . . . . Damage (minor) 1 | . . . . . . . . . . . . . . . . . . . . . . . . . 1 . . . . . . . Siege Activations 3 | . . . . . . . . . . . . . . . . . . . 3 . . . . . . . . . . . . . Total Turns 49 | . . . . . . . . . . . . . . . . . . . 49 . . . . . . . . . . . . . Longest Duration 31 | . . . . . . . . . . . . . . . . . . . 31 . . . . . . . . . . . . . Robots Corrupted 27 | . . . 1 . . 1 2 1 . 3 . . . . . . . . . . . . . . . 1 . 1 3 . 6 8 Combat Hostiles 21 | . . . 1 . . 1 1 1 . 2 . . . . . . . . . . . . . . . . . 1 . . 6 8 Parts Fried 51 | . . . 1 . 9 2 6 . . 1 . . . . . . . . . . . . . . . 6 . 2 2 . 8 14 Impact Corruptions 10 | . . . . . 10 . . . . . . . . . . . . . . . . . . . . . . . . . . . Robots Melted . | . . . . . . . . . . . . . . . . . . . . . . . . . . . . . . . . . Combat Hostiles . | . . . . . . . . . . . . . . . . . . . . . . . . . . . . . . . . . Parts Melted 5 | . . . 2 . . . 2 . . . . . . . . . . . . . . . . . . 1 . . . . . . Heat Transferred 5625 | 74 782 481 999 . . . 1033 50 . 50 . . . . . . . 50 . . . . . . . 50 150 150 549 375 136 696 Parts Sabotaged 4 | . . . . . . . . . . . . . . . . . . . . . . . . . . . . . . . . 4 Parts Stolen 4 | . . . . . . . . . . . . . . . 4 . . . . . . . . . . . . . . . . . Parts Stripped . | . . . . . . . . . . . . . . . . . . . . . . . . . . . . . . . . . Power Chain Reactions 18 | . . . . . . . 12 2 . 1 . . . . . . . . . . . . . . . . . . . . . 3 Missiles Intercepted . | . . . . . . . . . . . . . . . . . . . . . . . . . . . . . . . . . Latent Energy Used 332 | . . . . . . 180 152 . . . . . . . . . . . . . . . . . . . . . . . . . LE Corruption 6 | . . . . . . 3 3 . . . . . . . . . . . . . . . . . . . . . . . . . Alert | -11 -10 -10 -9 -9 -9 -8 -8 -8 -8 -8 -7 -7 -7 -7 -7 -7 -6 -6 -6 -6 -6 -5 -5 -4 -4 -4 -4 -4 -4 -3 -3 -2 ------- Run | Scr Mat Min Mat Min Exi Min Mat Gar Mat Gar Fac Was Fac Low Low Dat Pro Fac Gar Fac Gar Fac Gar Fac Was Fac Gar Fac Gar Res Gar Res Peak Influence 1356 | 5 299 70 189 138 . 328 633 750 380 828 484 104 264 . . . . 802 1177 786 798 500 778 609 217 1033 1356 837 1164 934 1176 1004 Initial 723 | . 3 5 27 48 . . 27 250 365 247 434 104 72 . . . . . 354 617 465 418 350 408 213 11 723 711 396 654 691 661 Average 479 | 1 72 46 98 57 . 165 411 515 366 512 335 104 145 . . . . 458 815 659 666 427 555 531 154 572 1124 688 854 748 828 737 Maximum Alert Level 4 | . 1 . . . . 1 2 3 1 3 2 . 1 . . . . 3 4 3 3 2 3 2 1 3 4 3 4 3 4 3 Low Security (%) 25 | 100 81 100 100 100 . 78 7 . . . 2 100 67 . . . . 20 . . . . . . 30 17 . . . . . . Level 1 17 | . 18 . . . . 21 31 21 100 42 73 . 32 . . . . 22 3 . . 3 22 . 69 1 . . 6 . . . Level 2 31 | . . . . . . . 61 68 . 33 23 . . . . . . 37 31 78 61 96 64 100 . 37 . 35 27 48 7 55 Level 3 19 | . . . . . . . . 9 . 23 . . . . . . . 19 53 21 38 . 12 . . 42 24 64 24 51 84 44 Level 4 6 | . . . . . . . . . . . . . . . . . . . 11 . . . . . . . 75 . 40 . 7 . Level 5 . | . . . . . . . . . . . . . . . . . . . . . . . . . . . . . . . . . High Security . | . . . . . . . . . . . . . . . . . . . . . . . . . . . . . . . . . Max Security . | . . . . . . . . . . . . . . . . . . . . . . . . . . . . . . . . . Squads Dispatched 55 | . 1 . 1 . . . 11 . . . 5 . 2 . 1 . . 4 . 1 . 1 . . . 10 . 2 . 7 . 9 Investigation 15 | . . . . . . . 5 . . . 3 . 1 . 1 . . 1 . . . 1 . . . 2 . 1 . . . . Extermination 6 | . . . . . . . . . . . 1 . . . . . . . . 1 . . . . . 1 . . . 2 . 1 Reinforcement 21 | . 1 . 1 . . . 6 . . . 1 . 1 . . . . 1 . . . . . . . 3 . . . 1 . 6 Assault 10 | . . . . . . . . . . . . . . . . . . 2 . . . . . . . 4 . 1 . 1 . 2 Garrison . | . . . . . . . . . . . . . . . . . . . . . . . . . . . . . . . . . Intercept 3 | . . . . . . . . . . . . . . . . . . . . . . . . . . . . . . 3 . . Construction Impeded 6 | . . . . . . . 1 . . . . . . . . . . . . . . . . . . 1 . . . 1 . 3 Haulers Reinforced 4 | . . . . . . . . . . . . . . . . . . 1 . . . . . . . . . . . . . 3 Stealth | -11 -10 -10 -9 -9 -9 -8 -8 -8 -8 -8 -7 -7 -7 -7 -7 -7 -6 -6 -6 -6 -6 -5 -5 -4 -4 -4 -4 -4 -4 -3 -3 -2 --------- Run | Scr Mat Min Mat Min Exi Min Mat Gar Mat Gar Fac Was Fac Low Low Dat Pro Fac Gar Fac Gar Fac Gar Fac Was Fac Gar Fac Gar Res Gar Res Distress Signals 17 | . . . 1 . . . 6 . . . . . 1 . . . . 1 . . . . . 1 . 1 . . . . . 6 Communications Jammed 17 | . . . . . . . . . . . . . . . . . . 17 . . . . . . . . . . . . . . Distress Signals 17 | . . . . . . . . . . . . . . . . . . 17 . . . . . . . . . . . . . . Times Spotted 582 | . 18 7 22 4 29 19 47 13 1 28 17 6 16 8 10 4 1 18 25 13 11 5 23 9 4 60 18 10 20 32 21 63 Peak Tracking Total 12 | . 3 3 8 4 9 7 8 3 1 5 5 3 5 6 4 4 1 6 4 3 4 2 5 4 2 7 6 4 7 9 4 12 Tactical Retreats 59 | . 1 . 1 . 12 4 1 . . 14 2 . 1 1 . . 1 . 7 . 1 . . 2 . 1 . . 1 2 2 5 Traps | -11 -10 -10 -9 -9 -9 -8 -8 -8 -8 -8 -7 -7 -7 -7 -7 -7 -6 -6 -6 -6 -6 -5 -5 -4 -4 -4 -4 -4 -4 -3 -3 -2 ------- Run | Scr Mat Min Mat Min Exi Min Mat Gar Mat Gar Fac Was Fac Low Low Dat Pro Fac Gar Fac Gar Fac Gar Fac Was Fac Gar Fac Gar Res Gar Res Traps Triggered 31 | . . . 1 1 . . 1 1 . 3 3 . . . 1 . . . 3 2 . . 3 1 . 2 2 1 3 . 2 1 Indirectly 2 | . . . . . . . 1 . . 1 . . . . . . . . . . . . . . . . . . . . . . Trap Hack Attempts . | . . . . . . . . . . . . . . . . . . . . . . . . . . . . . . . . . Triggered . | . . . . . . . . . . . . . . . . . . . . . . . . . . . . . . . . . Disarmed . | . . . . . . . . . . . . . . . . . . . . . . . . . . . . . . . . . Reprogrammed 1 | . 1 . . . . . . . . . . . . . . . . . . . . . . . . . . . . . . . Reused 1 | . . . . . 1 . . . . . . . . . . . . . . . . . . . . . . . . . . . Traps Extracted . | . . . . . . . . . . . . . . . . . . . . . . . . . . . . . . . . . Installed 3 | . . . . . 1 . . . . . . . . . 2 . . . . . . . . . . . . . . . . . Triggered 3 | . . . . . . . 1 . . 1 . . . . . . . . . . . . . . . . . . . . . 1 Exploded 3 | . . . . . 3 . . . . . . . . . . . . . . . . . . . . . . . . . . . Machines | -11 -10 -10 -9 -9 -9 -8 -8 -8 -8 -8 -7 -7 -7 -7 -7 -7 -6 -6 -6 -6 -6 -5 -5 -4 -4 -4 -4 -4 -4 -3 -3 -2 ---------- Run | Scr Mat Min Mat Min Exi Min Mat Gar Mat Gar Fac Was Fac Low Low Dat Pro Fac Gar Fac Gar Fac Gar Fac Was Fac Gar Fac Gar Res Gar Res Machines Disabled 72 | . . 2 . . 10 2 8 2 . 2 . . . 1 1 . . 6 6 1 1 . 2 1 . 10 6 1 5 . 4 1 Max in Single Turn 3 | . . 1 . . 1 1 3 1 . 1 . . . 1 1 . . 2 2 1 1 . 1 1 . 2 2 1 1 . 2 1 Garrison Access 7 | . . . . . . . . . . . 2 . 1 . . . . 1 . . . . . 1 . 2 . . . . . . Garrison Relay 18 | . . . . . . . . 2 . 2 . . . . . . . . 3 . 1 . 2 . . . 3 . 3 . 2 . Phase Generator 2 | . . . . . . . . . . . . . . . . . . . 1 . . . . . . . . . . . 1 . Machines Sabotaged . | . . . . . . . . . . . . . . . . . . . . . . . . . . . . . . . . . Garrisons Compromised . | . . . . . . . . . . . . . . . . . . . . . . . . . . . . . . . . . Overloaded Fab Kills . | . . . . . . . . . . . . . . . . . . . . . . . . . . . . . . . . . Fab Network Shutdowns . | . . . . . . . . . . . . . . . . . . . . . . . . . . . . . . . . . Hacking | -11 -10 -10 -9 -9 -9 -8 -8 -8 -8 -8 -7 -7 -7 -7 -7 -7 -6 -6 -6 -6 -6 -5 -5 -4 -4 -4 -4 -4 -4 -3 -3 -2 --------- Run | Scr Mat Min Mat Min Exi Min Mat Gar Mat Gar Fac Was Fac Low Low Dat Pro Fac Gar Fac Gar Fac Gar Fac Was Fac Gar Fac Gar Res Gar Res Machines Accessed 83 | . 6 1 3 1 2 . 10 . 1 . 19 . 6 1 1 . . 4 . 9 . 3 . 3 . 4 . 3 . 5 . 1 Terminals 53 | . 6 1 2 . . . 6 . . . 13 . 3 1 1 . . 2 . 5 . 2 . 2 . 2 . 2 . 4 . 1 Fabricators 5 | . . . . . . . . . . . . . 1 . . . . 1 . 3 . . . . . . . . . . . . Repair Stations 4 | . . . . . . . 1 . . . 3 . . . . . . . . . . . . . . . . . . . . . Recycling Units 1 | . . . . . . . . . . . . . 1 . . . . . . . . . . . . . . . . . . . Scanalyzers 4 | . . . 1 . . . 2 . . . 1 . . . . . . . . . . . . . . . . . . . . . Garrison Access 13 | . . . . . . . 1 . 1 . 2 . 1 . . . . 1 . 1 . 1 . 1 . 2 . 1 . 1 . . Total Hacks 215 | . 17 1 6 1 2 . 35 . 2 . 55 . 14 3 4 . . 10 . 26 . 7 . 6 . 7 . 7 . 9 . 3 Successful 119 | . 11 . 4 1 2 . 20 . 2 . 28 . 7 3 4 . . 5 . 9 . 4 . 3 . 3 . 7 . 5 . 1 Failed 94 | . 5 1 2 . . . 15 . . . 26 . 7 . . . . 5 . 17 . 3 . 3 . 4 . . . 4 . 2 Catastrophic 15 | . . 1 . . . . 1 . . . 3 . 2 . . . . 1 . 2 . 1 . 1 . 2 . . . . . 1 Database Lockouts 2 | . 1 . . . . . . . . . 1 . . . . . . . . . . . . . . . . . . . . . Manual 87 | . 13 . 4 . 1 . 15 . . . 24 . 7 . . . . 4 . 4 . 3 . . . 4 . 4 . 4 . . Terminals 145 | . 17 1 4 . . . 20 . . . 44 . 8 3 4 . . 7 . 11 . 3 . 4 . 3 . 5 . 8 . 3 Fabricators 17 | . . . . . . . . . . . . . 3 . . . . 2 . 12 . . . . . . . . . . . . Repair Stations 8 | . . . . . . . 2 . . . 6 . . . . . . . . . . . . . . . . . . . . . Recycling Units 2 | . . . . . . . . . . . . . 2 . . . . . . . . . . . . . . . . . . . Scanalyzers 15 | . . . 2 . . . 11 . . . 2 . . . . . . . . . . . . . . . . . . . . . Garrison Access 25 | . . . . . . . 2 . 2 . 3 . 1 . . . . 1 . 3 . 4 . 2 . 4 . 2 . 1 . . Terminal Hacks 52 | . 7 . . 1 2 . 5 . . . 13 . 2 3 4 . . 4 . 1 . 2 . 1 . . . 3 . 3 . 1 Record 10 | . . . . . 1 . . . . . 2 . . 3 4 . . . . . . . . . . . . . . . . . Part Schematic 2 | . . . . . . . . . . . 1 . . . . . . 1 . . . . . . . . . . . . . . Robot Schematic 1 | . . . . . . . . . . . 1 . . . . . . . . . . . . . . . . . . . . . Robot Analysis 2 | . 1 . . . . . . . . . 1 . . . . . . . . . . . . . . . . . . . . . Prototype ID Bank 1 | . . . . . . . . . . . 1 . . . . . . . . . . . . . . . . . . . . . Open Door 1 | . . . . 1 . . . . . . . . . . . . . . . . . . . . . . . . . . . . Branch Access Points 3 | . 1 . . . . . . . . . . . 1 . . . . . . . . . . . . . . 1 . . . . Machine Index 1 | . . . . . . . . . . . 1 . . . . . . . . . . . . . . . . . . . . . Terminal Index 3 | . 1 . . . . . . . . . 1 . 1 . . . . . . . . . . . . . . . . . . . Unreport Threat 9 | . 1 . . . . . 2 . . . . . . . . . . 2 . . . . . . . . . 1 . 2 . 1 Locate Traps 5 | . . . . . . . . . . . 1 . . . . . . 1 . 1 . 1 . . . . . 1 . . . . Reprogram Traps 1 | . 1 . . . . . . . . . . . . . . . . . . . . . . . . . . . . . . . Recall Investigation 1 | . . . . . . . . . . . 1 . . . . . . . . . . . . . . . . . . . . . Hauler Manifests 1 | . . . . . . . . . . . . . . . . . . . . . . . . 1 . . . . . . . . Registered Prototypes 1 | . . . . . . . . . . . 1 . . . . . . . . . . . . . . . . . . . . . Zone Layout 9 | . 2 . . . . . 3 . . . 2 . . . . . . . . . . 1 . . . . . . . 1 . . EX-Prototype ID Bank 1 | . . . . . 1 . . . . . . . . . . . . . . . . . . . . . . . . . . . Fabricator Hacks 8 | . . . . . . . . . . . . . 2 . . . . . . 6 . . . . . . . . . . . . Load Schematic 4 | . . . . . . . . . . . . . 1 . . . . . . 3 . . . . . . . . . . . . Build 4 | . . . . . . . . . . . . . 1 . . . . . . 3 . . . . . . . . . . . . Repair Station Hacks 4 | . . . . . . . 1 . . . 3 . . . . . . . . . . . . . . . . . . . . . Scan Component 3 | . . . . . . . 1 . . . 2 . . . . . . . . . . . . . . . . . . . . . Repair 1 | . . . . . . . . . . . 1 . . . . . . . . . . . . . . . . . . . . . Recycling Unit Hacks 1 | . . . . . . . . . . . . . 1 . . . . . . . . . . . . . . . . . . . Retrieve Components 1 | . . . . . . . . . . . . . 1 . . . . . . . . . . . . . . . . . . . Scanalyzer 11 | . . . 2 . . . 7 . . . 2 . . . . . . . . . . . . . . . . . . . . . Insert Component 5 | . . . 1 . . . 3 . . . 1 . . . . . . . . . . . . . . . . . . . . . Analyze 6 | . . . 1 . . . 4 . . . 1 . . . . . . . . . . . . . . . . . . . . . Garrison Access Hacks 18 | . . . . . . . 1 . 2 . 3 . 1 . . . . 1 . 2 . 2 . 2 . 2 . 1 . 1 . . Unlock Access 8 | . . . . . . . 1 . 1 . . . . . . . . 1 . 1 . 1 . . . 1 . 1 . 1 . . Seal Access 5 | . . . . . . . . . . . 2 . 1 . . . . . . . . . . 1 . 1 . . . . . . Coupler Status 5 | . . . . . . . . . 1 . 1 . . . . . . . . 1 . 1 . 1 . . . . . . . . Unauthorized Hacks 25 | . 4 . 2 . . . 6 . . . 7 . 1 . . . . . . . . . . . . 1 . 3 . 1 . . Terminals 22 | . 4 . 2 . . . 5 . . . 7 . 1 . . . . . . . . . . . . . . 2 . 1 . . Track 5 | . . . 1 . . . 3 . . . 1 . . . . . . . . . . . . . . . . . . . . . Assimilate 2 | . . . 1 . . . . . . . 1 . . . . . . . . . . . . . . . . . . . . . Botnet 13 | . 2 . . . . . 2 . . . 5 . 1 . . . . . . . . . . . . . . 2 . 1 . . Disrupt 1 | . 1 . . . . . . . . . . . . . . . . . . . . . . . . . . . . . . . Operators 1 | . 1 . . . . . . . . . . . . . . . . . . . . . . . . . . . . . . . Fabricators . | . . . . . . . . . . . . . . . . . . . . . . . . . . . . . . . . . Repair Stations . | . . . . . . . . . . . . . . . . . . . . . . . . . . . . . . . . . Recycling Units . | . . . . . . . . . . . . . . . . . . . . . . . . . . . . . . . . . Scanalyzers . | . . . . . . . . . . . . . . . . . . . . . . . . . . . . . . . . . Garrison Access 3 | . . . . . . . 1 . . . . . . . . . . . . . . . . . . 1 . 1 . . . . Eject 3 | . . . . . . . 1 . . . . . . . . . . . . . . . . . . 1 . 1 . . . . Data Cores Recovered 2 | . . . . . . . . . . . . . . . . . . 1 . . . . . . . . . 1 . . . . Used . | . . . . . . . . . . . . . . . . . . . . . . . . . . . . . . . . . Hacking Detections 64 | . 6 1 2 . . . 8 . 1 . 15 . 5 1 1 . . 3 . 7 . 2 . 2 . 3 . 2 . 4 . 1 Full Trace Events 8 | . . . . . . . 1 . . . 2 . 1 1 1 . . . . . . 1 . . . 1 . . . . . . Feedback Events 2 | . . . . . . . . . . . . . 1 . . . . . . . . 1 . . . . . . . . . . Corruption 1 | . . . . . . . . . . . . . . . . . . . . . . 1 . . . . . . . . . . Hackware Fried 1 | . . . . . . . . . . . . . 1 . . . . . . . . . . . . . . . . . . . Feedback Blocked . | . . . . . . . . . . . . . . . . . . . . . . . . . . . . . . . . . Robot Schematics Acquired 1 | . . . . . . . . . . . 1 . . . . . . . . . . . . . . . . . . . . . Robots Built 2 | . . . . . . . . . . . . . 2 . . . . . . . . . . . . . . . . . . . Matter 252 | . . . . . . . . . . . . . 252 . . . . . . . . . . . . . . . . . . . Time 67 | . . . . . . . . . . . . . 67 . . . . . . . . . . . . . . . . . . . Total Robot Build Rating 8 | . . . . . . . . . . . . . 8 . . . . . . . . . . . . . . . . . . . Part Schematics Acquired 5 | . . . 1 . . . 1 . . . 2 . . . . . . 1 . . . . . . . . . . . . . . Parts Built 2 | . . . . . . . . . . . . . . . . . . . . 2 . . . . . . . . . . . . Matter 702 | . . . . . . . . . . . . . . . . . . . . 702 . . . . . . . . . . . . Time 374 | . . . . . . . . . . . . . . . . . . . . 374 . . . . . . . . . . . . Total Part Build Rating 14 | . . . . . . . . . . . . . . . . . . . . 14 . . . . . . . . . . . . Parts Repaired 1 | . . . . . . . . . . . 1 . . . . . . . . . . . . . . . . . . . . . Time 22 | . . . . . . . . . . . 22 . . . . . . . . . . . . . . . . . . . . . Parts Recycled . | . . . . . . . . . . . . . . . . . . . . . . . . . . . . . . . . . Recycled Matter . | . . . . . . . . . . . . . . . . . . . . . . . . . . . . . . . . . Retrieved Matter . | . . . . . . . . . . . . . . . . . . . . . . . . . . . . . . . . . Retrieved Components 1 | . . . . . . . . . . . . . 1 . . . . . . . . . . . . . . . . . . . Parts Scanalyzed 3 | . . . 1 . . . 1 . . . 1 . . . . . . . . . . . . . . . . . . . . . Part Schematics Acquired 3 | . . . 1 . . . 1 . . . 1 . . . . . . . . . . . . . . . . . . . . . Parts Damaged 1 | . . . 1 . . . . . . . . . . . . . . . . . . . . . . . . . . . . . Bothacking | -11 -10 -10 -9 -9 -9 -8 -8 -8 -8 -8 -7 -7 -7 -7 -7 -7 -6 -6 -6 -6 -6 -5 -5 -4 -4 -4 -4 -4 -4 -3 -3 -2 ------------ Run | Scr Mat Min Mat Min Exi Min Mat Gar Mat Gar Fac Was Fac Low Low Dat Pro Fac Gar Fac Gar Fac Gar Fac Was Fac Gar Fac Gar Res Gar Res Used RIF Installer 8 | . . . . . . . . 1 . 1 . . . . . . . . 1 . 1 . 1 . . . 1 . 1 . 1 . Coupler Efficiency 1 | . . . . . . . . . . . . . . . . . . . . . . . . . . . . . 1 . . . Watcher Feeds 1 | . . . . . . . . . . . . . . . . . . . 1 . . . . . . . . . . . . . Structural Interface 1 | . . . . . . . . . . 1 . . . . . . . . . . . . . . . . . . . . . . Autooverride 2 | . . . . . . . . . . . . . . . . . . . . . . . 1 . . . 1 . . . . . Autoassimilate 2 | . . . . . . . . . . . . . . . . . . . . . 1 . . . . . . . . . 1 . Robots Hacked 91 | . . . . . . 1 . . 1 1 9 . . . . . . 1 3 5 4 4 6 3 . 7 6 4 7 7 14 8 Non-combat 8 | . . . . . . 1 . . . . 2 . . . . . . . . 1 . . . 2 . . . . . 1 . 1 Combat 83 | . . . . . . . . . 1 1 7 . . . . . . 1 3 4 4 4 6 1 . 7 6 4 7 6 14 7 Autooverrided 8 | . . . . . . . . . . . . . . . . . . . . . . . 1 . . 1 1 1 1 1 1 1 Autoassimilated 14 | . . . . . . . . . . . . . . . . . . . . . 1 . 2 . . 3 2 . 1 1 3 1 Robot Hacks Applied 70 | . . . . . . 1 . . 1 1 9 . . . . . . 1 3 5 3 4 3 3 . 3 3 3 5 5 11 6 parse_system 5 | . . . . . . 1 . . . . . . . . . . . . . . . . . . . . 1 . 1 . 2 . find_chute 1 | . . . . . . . . . . . . . . . . . . . . . . . . 1 . . . . . . . . drop_inventory 1 | . . . . . . . . . . . 1 . . . . . . . . . . . . . . . . . . . . . block_reporting 2 | . . . . . . . . . . . . . . . . . . . . 1 . . . 1 . . . . . . . . map_route 2 | . . . . . . . . . . . 1 . . . . . . . . . . . . . . . . . . . . 1 link_fov 1 | . . . . . . . . . . . . . . . . . . . . . . . . . . . . . . . 1 . scatter_targeting 1 | . . . . . . . . . . . . . . . . . . . . . . . . . . . . . . . . 1 disrupt_area 1 | . . . . . . . . . . . . . . . . . . . . . 1 . . . . . . . . . . . wipe_record 1 | . . . . . . . . . . . . . . . . . . . . . . 1 . . . . . . . . . . reboot_system 1 | . . . . . . . . . . . . . . . . . . . . 1 . . . . . . . . . . . . overwrite_iff 20 | . . . . . . . . . . 1 3 . . . . . . . 1 3 2 . 2 1 . 2 . . 2 1 2 . streamctrl_high 1 | . . . . . . . . . . . . . . . . . . . . . . . . . . . . 1 . . . . formatsys_high 33 | . . . . . . . . . 1 . 4 . . . . . . 1 2 . . 3 1 . . 1 2 2 2 4 6 4 Relay Couplers Released 82 | . . . . . . . 4 9 . 9 . . . . . . . 1 12 . 5 . 9 . . 2 10 3 11 . 7 . Ejected 9 | . . . . . . . 4 . . . . . . . . . . . . . . . . . . 2 . 3 . . . . Machine Destruction 73 | . . . . . . . . 9 . 9 . . . . . . . 1 12 . 5 . 9 . . . 10 . 11 . 7 . Attached 33 | . . . . . . . . . 1 . 5 . . . . . . 1 3 2 2 . 3 1 . . 5 1 3 2 4 . Robots Rewired 9 | . . . . . . . . . . . 1 . . . . . . 2 6 . . . . . . . . . . . . . Allies Hacked . | . . . . . . . . . . . . . . . . . . . . . . . . . . . . . . . . . Hacks Repelled . | . . . . . . . . . . . . . . . . . . . . . . . . . . . . . . . . . Allies | -11 -10 -10 -9 -9 -9 -8 -8 -8 -8 -8 -7 -7 -7 -7 -7 -7 -6 -6 -6 -6 -6 -5 -5 -4 -4 -4 -4 -4 -4 -3 -3 -2 -------- Run | Scr Mat Min Mat Min Exi Min Mat Gar Mat Gar Fac Was Fac Low Low Dat Pro Fac Gar Fac Gar Fac Gar Fac Was Fac Gar Fac Gar Res Gar Res Total Allies 87 | . . . . . . . . . 1 1 8 . 2 . . . . 3 9 3 3 3 6 1 . 7 5 4 6 7 12 6 Largest Group 6 | . . . . . . . . . 1 1 3 . 2 2 . . . 2 6 2 1 3 2 1 . 1 5 5 2 6 4 3 Highest-Rated Group 316 | . . . . . . . . . 15 15 77 . 64 64 . . . 64 183 58 41 107 58 30 . 47 248 316 98 311 216 180 Highest-Rated Ally 115 | . . . . . . . . . 15 15 32 . 32 32 . . . 32 32 41 41 49 29 30 . 47 58 115 49 64 64 69 Total Orders 14 | . . . . . . . . . . . . . . 4 . . . . . . 2 . . . . . . . 8 . . . STAY 8 | . . . . . . . . . . . . . . 3 . . . . . . 1 . . . . . . . 4 . . . FOLLOW 6 | . . . . . . . . . . . . . . 1 . . . . . . 1 . . . . . . . 4 . . . Ally Attacks 327 | . . . . . . . . . . 6 19 . 2 10 . . . 3 27 6 3 26 20 2 . 27 10 28 15 67 31 25 Total Damage 8909 | . . . . . . . . . . 121 286 . 58 301 . . . 73 712 122 58 430 206 57 . 642 302 828 469 2258 1142 844 Kills 50 | . . . . . . . . . . 1 1 . 2 3 . . . 1 3 1 . 4 2 . . 3 2 1 4 14 5 3 Allies Corrupted 1 | . . . . . . . . . . . . . . . . . . . . . . . . . . . . . . 1 . . Allies Melted . | . . . . . . . . . . . . . . . . . . . . . . . . . . . . . . . . . Intel | -11 -10 -10 -9 -9 -9 -8 -8 -8 -8 -8 -7 -7 -7 -7 -7 -7 -6 -6 -6 -6 -6 -5 -5 -4 -4 -4 -4 -4 -4 -3 -3 -2 ------- Run | Scr Mat Min Mat Min Exi Min Mat Gar Mat Gar Fac Was Fac Low Low Dat Pro Fac Gar Fac Gar Fac Gar Fac Was Fac Gar Fac Gar Res Gar Res Robot Analysis Total 117 | . 1 . . . . . . . . . 1 . . . . 115 . . . . . . . . . . . . . . . . Derelict Logs Recovered 10 | . . 2 . 2 . . . . . . . . . 2 2 . 2 . . . . . . . . . . . . . . . Drone Launches . | . . . . . . . . . . . . . . . . . . . . . . . . . . . . . . . . . Drone Recoveries . | . . . . . . . . . . . . . . . . . . . . . . . . . . . . . . . . . Exploration | -11 -10 -10 -9 -9 -9 -8 -8 -8 -8 -8 -7 -7 -7 -7 -7 -7 -6 -6 -6 -6 -6 -5 -5 -4 -4 -4 -4 -4 -4 -3 -3 -2 ------------- Run | Scr Mat Min Mat Min Exi Min Mat Gar Mat Gar Fac Was Fac Low Low Dat Pro Fac Gar Fac Gar Fac Gar Fac Was Fac Gar Fac Gar Res Gar Res Turns Passed 25504 | 58 855 976 997 680 1855 888 1698 1127 102 869 1681 311 676 613 673 167 454 394 1196 594 809 256 716 352 577 1124 842 599 1189 644 826 706 Spaces Moved 15126 | 46 612 552 545 445 1064 463 909 473 51 397 1233 203 531 454 491 100 337 265 627 339 515 192 411 224 336 530 491 369 800 357 436 328 Core 35 | 5 . . . . . . . . . . . . . . . . . . . . . . . . . . . . . . . 30 Treads 1337 | . . 146 35 64 387 . . 309 51 264 . . . . . . . . 68 . . . . 2 7 . 1 . . . . 3 Legs 6592 | . . . . . 147 463 909 164 . . . . . . . . . . . . 478 192 411 222 329 530 490 369 800 357 436 295 Wheels 7162 | 41 612 406 510 381 530 . . . . 133 1233 203 531 454 491 100 337 265 559 339 37 . . . . . . . . . . . Hover . | . . . . . . . . . . . . . . . . . . . . . . . . . . . . . . . . . Flight . | . . . . . . . . . . . . . . . . . . . . . . . . . . . . . . . . . Fastest Speed 50 | 50 90 120 120 140 130 120 150 150 180 110 95 95 95 105 105 110 110 110 110 110 110 120 120 120 120 120 120 120 120 120 120 50 Average Speed 127 | 80 112 140 141 149 149 150 154 170 180 156 101 103 98 105 106 119 110 113 115 110 119 120 120 120 147 135 130 131 120 131 130 112 Slowest Speed 300 | 90 120 200 220 205 205 180 180 300 180 180 105 105 105 105 130 130 120 120 160 110 120 120 120 220 180 150 240 150 150 150 150 160 Overloaded Moves . | . . . . . . . . . . . . . . . . . . . . . . . . . . . . . . . . . Propulsion Burnouts . | . . . . . . . . . . . . . . . . . . . . . . . . . . . . . . . . . Robots Hopped . | . . . . . . . . . . . . . . . . . . . . . . . . . . . . . . . . . Cave-ins Triggered . | . . . . . . . . . . . . . . . . . . . . . . . . . . . . . . . . . Exploration Rate (%) 51 | 4 90 98 36 98 90 92 72 81 8 41 35 85 13 63 63 72 46 13 70 10 75 6 56 10 86 16 94 13 71 12 58 16 Regions Visited 32 Branch Regions 8 Pre-discovered Areas 27 | . . 2 . . 1 . . . . . . . . 1 1 22 . . . . . . . . . . . . . . . . Known Exits Taken 15 | . 1 . 1 . . . 1 . 1 . . . 1 1 1 1 1 1 . 1 . 1 . . . 1 . 1 . 1 . . Unknown Exits Taken 5 | 1 . 1 . 1 1 1 . . . . . . . . . . . . . . . . . . . . . . . . . . Scrap Searched 14 | . . 1 . 2 . 2 . . . . . . . 2 4 . 3 . . . . . . . . . . . . . . . Spaces Dug 140 | . . 1 . . 2 10 24 13 . . 7 . . . 4 . 5 17 6 4 1 1 3 . . 1 3 9 3 24 . 2 Terrain Destroyed 1172 | . 18 30 . 15 2 47 101 24 . . 7 . 34 107 5 40 5 186 89 5 12 1 11 1 5 67 54 23 86 86 79 32 Melee 52 | . . 1 . . 2 . 7 12 . . 7 . . . 1 . 1 5 3 4 . . 3 . . 1 1 2 . . . 2 Projectile 150 | . . . . . . 7 6 2 . . . . . . 4 . 4 . 10 1 12 1 8 1 5 29 8 8 15 9 2 18 AOE 970 | . 18 29 . 15 . 40 88 10 . . . . 34 107 . 40 . 181 76 . . . . . . 37 45 13 71 77 77 12 Terrain Rammed . | . . . . . . . . . . . . . . . . . . . . . . . . . . . . . . . . . Walls Destroyed . | . . . . . . . . . . . . . . . . . . . . . . . . . . . . . . . . . Machines Disabled . | . . . . . . . . . . . . . . . . . . . . . . . . . . . . . . . . . Actions | -11 -10 -10 -9 -9 -9 -8 -8 -8 -8 -8 -7 -7 -7 -7 -7 -7 -6 -6 -6 -6 -6 -5 -5 -4 -4 -4 -4 -4 -4 -3 -3 -2 --------- Run | Scr Mat Min Mat Min Exi Min Mat Gar Mat Gar Fac Was Fac Low Low Dat Pro Fac Gar Fac Gar Fac Gar Fac Was Fac Gar Fac Gar Res Gar Res Total 18999 | 59 717 673 699 460 1247 587 1087 650 58 564 1539 247 629 554 576 135 407 325 948 505 641 208 528 266 372 708 629 444 942 462 609 524 Wait 1117 | . 21 35 39 1 9 17 43 46 2 36 153 . 42 43 4 16 56 12 189 115 64 . 12 1 . 4 49 3 37 12 29 27 Move 15098 | 45 611 551 544 444 1063 462 908 472 51 396 1233 202 530 453 490 99 336 265 625 338 513 192 410 224 335 529 490 369 799 357 434 328 Hop . | . . . . . . . . . . . . . . . . . . . . . . . . . . . . . . . . . Pick Up 265 | 4 21 11 27 4 31 24 4 3 . 17 10 5 5 6 14 1 1 3 4 1 2 1 10 5 1 9 6 5 7 4 12 7 Fast Attach 179 | 7 3 2 3 . 9 6 12 7 . 4 5 1 3 3 4 1 1 4 2 6 8 2 4 2 4 17 8 7 9 5 9 21 Attach 84 | . 1 2 2 . 6 5 1 . . 2 6 . 3 7 5 1 . 3 2 . . . 2 2 . 3 6 2 2 5 8 8 Detach 61 | 1 1 . . . 3 1 2 . . 1 6 . 3 11 . 2 . 2 1 . 4 . 1 . 3 2 4 1 2 6 . 4 Swap 413 | . 8 7 20 4 8 15 23 17 4 12 47 5 9 8 13 2 2 3 24 13 8 5 16 9 3 20 6 13 14 16 32 27 Drop 286 | . 13 7 25 5 39 10 13 9 . 9 8 8 8 2 12 2 1 5 3 4 7 1 7 5 5 10 7 13 6 8 19 15 Fire 1198 | 2 38 29 38 2 49 47 73 43 1 55 52 26 26 20 31 10 7 19 73 17 35 7 46 18 21 113 37 25 58 47 58 75 Melee 183 | . . 11 . . 5 . 8 51 . 22 11 . . 1 1 1 3 9 11 11 . . 18 . . 1 6 6 . . 4 3 Ram 1 | . . . . . . . . . . . . . . . . . . . . . . . . . . . . . . . . 1 Kick 9 | . . . . . . . . . . . . . . . . . . . . . . . . . . . . . . 1 . 8 Crush 43 | . . 18 1 . 24 . . . . . . . . . . . . . . . . . . . . . . . . . . . Escape Stasis 58 | . . . . . . . . 2 . 10 8 . . . . . . . 14 . . . 2 . . . 10 . 8 . 4 . Rewire 1 | . . . . . . . . . . . . . . . . . . . . . . . . . . . . . . 1 . . Trap 3 | . . . . . 1 . . . . . . . . . 2 . . . . . . . . . . . . . . . . . Miscellaneous . | . . . . . . . . . . . . . . . . . . . . . . . . . . . . . . . . . Route ------- -11/Scrapyard -10/Materials (discovered 4 exits: *Mat x3 / *Min) -10/Mines (discovered 2 exits: *Mat x2) -9/Materials (discovered 2 exits: *Min x2) -9/Mines (discovered 3 exits: *Mat x2 / *Exi) -9/Exiles -8/Mines -8/Materials (discovered 2 exits: *Fac / Gar) -8/Garrison (discovered 2 exits: *Mat x2) -8/Materials -8/Garrison -7/Factory (discovered 3 exits: *Fac x2 / *Low) -7/Waste -7/Factory (discovered 5 exits: *Fac / Sto x2 / *Low x2) -7/Lower Caves -7/Lower Caves -7/Data Miner -6/Proximity Caves -6/Factory (discovered 2 exits: Fac / Gar) -6/Garrison (discovered 2 exits: *Fac x2) -6/Factory (discovered 2 exits: [*Low] / Gar) -6/Garrison (discovered 2 exits: *Fac x2) -5/Factory (discovered 2 exits: Upp / Gar) -5/Garrison -4/Factory (discovered 2 exits: *Res / Ext) -4/Waste -4/Factory (discovered 2 exits: *Upp / Gar) -4/Garrison (discovered 3 exits: *Fac x3) -4/Factory (discovered 6 exits: *Res / *Upp x2 / Ext x2 / Gar) -4/Garrison -3/Research -3/Garrison -2/Research History --------- Turn | Location | Event 38 | -11/Scrapyard | Discovered new exit (range 15) 59 | -11/Scrapyard | Entered Materials 316 | -10/Materials | Build established: Mutant 498 | -10/Materials | Discovered new exit (range 11) 595 | -10/Materials | Discovered new exit (range 11) 738 | -10/Materials | Discovered new exit (range 16) 791 | -10/Materials | Identified exit to Mines 791 | -10/Materials | Central database locked down 914 | -10/Materials | Entered Mines 1009 | -10/Mines | Learned location of Storage (-7) 1013 | -10/Mines | YI-UF0 nonchalantly dropped a Grenade Launcher on the ground 1079 | -10/Mines | Destroyed YI-UF0 1106 | -10/Mines | Found Prototype Storage 1106 | -10/Mines | Identified YI-UF0's Bottomless Matter Pit 1336 | -10/Mines | Learned location of 1 exit from Materials 1364 | -10/Mines | Joined a pair of Derelicts in attacking an 0b10 outpost 1645 | -10/Mines | A weapon hastily lodged in a ceiling crevice suddenly fell to the ground 1671 | -10/Mines | Discovered new exit (range 8) 1702 | -10/Mines | Core integrity fell below 50% 1868 | -10/Mines | Discovered new exit (range 14) 1890 | -10/Mines | Entered Materials 1890 | -9/Materials | Evolved 2 slots: Utility x1, Weapon x1 1891 | -9/Materials | Identified exit to Mines 2369 | -9/Materials | Discovered exit to Mines (range 16) 2401 | -9/Materials | Build established: Hauler-Gunner 2887 | -9/Materials | Entered Mines 2900 | -9/Mines | Met a Derelict who couldn't figure out how to use a Trap Extractor 2978 | -9/Mines | Discovered new exit (range 15) 3029 | -9/Mines | Deemed a non-threat by the Exiles lab entrance 3029 | -9/Mines | Discovered new exit (range 5) 3064 | -9/Mines | Discovered new exit (range 15) 3291 | -9/Mines | Build established: Hauler-Mutant 3356 | -9/Mines | Found a hidden stash of uninstalled traps 3429 | -9/Mines | Learned Materials emergency access door positions 3567 | -9/Mines | Entered Exiles 3603 | -9/Exiles | Met 8R-AWN 3628 | -9/Exiles | Met EX-HEX 3669 | -9/Exiles | Met EX-BIN 3686 | -9/Exiles | Aligned with FarCom system 3687 | -9/Exiles | Given EX-Vault access code 3719 | -9/Exiles | Opened EX-Vault 3729 | -9/Exiles | Found Latent Energy Streamer 3759 | -9/Exiles | Warned to stay clear of 0b10 Research branches 3799 | -9/Exiles | Met EX-DEC 4216 | -9/Exiles | Discovered new exit (range 10) 4294 | -9/Exiles | Attacked by the Exiles 4444 | -9/Exiles | Destroyed 8R-AWN 4462 | -9/Exiles | Found Prototype Device 4462 | -9/Exiles | Identified AS-neutralizer No. 17b 4593 | -9/Exiles | Found Prototype Ballistic Gun 4593 | -9/Exiles | Identified 8R-AWN's Boregun 4598 | -9/Exiles | Found 8R-AWN's Boregun 4865 | -9/Exiles | Destroyed EX-DEC 4896 | -9/Exiles | Destroyed EX-BIN 4942 | -9/Exiles | Destroyed EX-HEX 4995 | -9/Exiles | Found Deploy-a-Sentry 5102 | -9/Exiles | Learned location of Zion (-6) 5196 | -9/Exiles | Found Lightpack 2.0 5254 | -9/Exiles | Build established: Hauler-Gunner 5327 | -9/Exiles | Found Prototype Processor 5422 | -9/Exiles | Stole three prototypes: Lightpack 2.0, Latent Energy Streamer, Deploy-a-Sentry 5422 | -9/Exiles | Entered Mines 5423 | -8/Mines | ME-RLN came to Exiles' defense 5425 | -8/Mines | ME-RLN assimilated allied G-47 Trooper 5448 | -8/Mines | ME-RLN assimilated allied U-05 Engineer 5464 | -8/Mines | Core integrity fell below 50% 5650 | -8/Mines | Lost 3 parts (3w) 5681 | -8/Mines | Found Prototype Hackware 5694 | -8/Mines | Found Prototype Special Weapon 5698 | -8/Mines | Identified ME-RLN's Wand 5715 | -8/Mines | Found Prototype Device 5749 | -8/Mines | Identified ME-RLN's Chromatic Screen 5891 | -8/Mines | Build established: Hauler-Mutant 5989 | -8/Mines | Discovered new exit (range 3) 6310 | -8/Mines | Entered Materials 6310 | -8/Materials | Evolved 2 slots: Utility x2 6368 | -8/Materials | Destroyed 8 combat bots 6649 | -8/Materials | Build established: Scavenger-Mutant 6750 | -8/Materials | Destroyed 7 combat bots 7040 | -8/Materials | Build established: Hauler-Mutant 7397 | -8/Materials | Discovered new exit (range 8) 7406 | -8/Materials | Identified exit to Factory 8007 | -8/Materials | Identified exit to Garrison 8008 | -8/Materials | Entered Garrison 8070 | -8/Garrison | Triggered checkpoint 8078 | -8/Garrison | Triggered checkpoint 8179 | -8/Garrison | Discovered new exit (range 8) 8188 | -8/Garrison | Identified exit to Materials 8197 | -8/Garrison | Installed Relay Interface Framework 8274 | -8/Garrison | Triggered checkpoint 8338 | -8/Garrison | Triggered checkpoint 8446 | -8/Garrison | Triggered checkpoint 8483 | -8/Garrison | Garrison Relay disabled 8572 | -8/Garrison | Identified System Mapper 8581 | -8/Garrison | Identified Exp. Targeting Computer 8626 | -8/Garrison | Discovered exit to Materials (range 10) 8948 | -8/Garrison | Triggered checkpoint 9023 | -8/Garrison | Garrison Relay disabled 9135 | -8/Garrison | Entered Materials 9237 | -8/Materials | Identified exit to Garrison 9237 | -8/Materials | Entered Garrison 9237 | -8/Garrison | Accompanied by 1 ally 9246 | -8/Garrison | Expanded RIF knowledge: Structural Interface 9344 | -8/Garrison | Triggered checkpoint 9431 | -8/Garrison | Garrison Relay disabled 9593 | -8/Garrison | Triggered checkpoint 9602 | -8/Garrison | Triggered checkpoint 9604 | -8/Garrison | Triggered checkpoint 10025 | -8/Garrison | Garrison Relay disabled 10097 | -8/Garrison | Discovered exit to Factory (range 8) 10106 | -8/Garrison | Entered Factory 10106 | -7/Factory | Evolved 2 slots: Propulsion x1, Utility x1 10387 | -7/Factory | Build established: Bothacker-Mutant 10466 | -7/Factory | Discovered new exit (range 101) 11189 | -7/Factory | Discovered new exit (range 7) 11247 | -7/Factory | Identified exit to Lower Caves 11636 | -7/Factory | Central database locked down 11701 | -7/Factory | Discovered new exit (range 3) 11703 | -7/Factory | Identified exit to Factory 11778 | -7/Factory | Repaired Flak Gun 11787 | -7/Factory | Sucked down chute 11787 | -7/Factory | Entered Waste 11817 | -7/Waste | Spotted C-40 Crusher 11828 | -7/Waste | Destroyed C-40 Crusher 11843 | -7/Waste | Found Damper Plating 11866 | -7/Waste | Spotted C-40 Crusher 11877 | -7/Waste | Destroyed C-40 Crusher 11895 | -7/Waste | Spotted C-40 Crusher 11906 | -7/Waste | Destroyed C-40 Crusher 11919 | -7/Waste | Spotted C-40 Crusher 11919 | -7/Waste | Spotted C-40 Crusher 11939 | -7/Waste | Destroyed C-40 Crusher 11946 | -7/Waste | Destroyed C-40 Crusher 11962 | -7/Waste | Spotted C-40 Crusher 11982 | -7/Waste | Destroyed C-40 Crusher 12080 | -7/Waste | Discovered new exit (range 14) 12097 | -7/Waste | Identified exit to Factory 12098 | -7/Waste | Entered Factory 12106 | -7/Factory | Build established: Hauler-Gunner 12298 | -7/Factory | Discovered exit to Factory (range 7) 12443 | -7/Factory | Identified exit to Storage 12483 | -7/Factory | Build established: Hauler-Skirmisher 12557 | -7/Factory | System Mapper fried by hacking feedback 12624 | -7/Factory | Fabricated Y-54 Guardian (x2) 12774 | -7/Factory | Entered Lower Caves 12774 | -7/Lower Caves | Accompanied by 2 allies 13042 | -7/Lower Caves | Attracted the attention of an 0b10 base 13097 | -7/Lower Caves | Learned 8 Factory zone layouts 13155 | -7/Lower Caves | Learned Armory terminal intel 13369 | -7/Lower Caves | Discovered new exit (range 15) 13383 | -7/Lower Caves | Identified exit to Lower Caves 13387 | -7/Lower Caves | Entered another Lower Caves area 13392 | -7/Lower Caves | Learned Factory emergency access door positions 13405 | -7/Lower Caves | Learned location of Extension (-4) 13565 | -7/Lower Caves | Encountered a Warlord checkpoint 13808 | -7/Lower Caves | Learned 6 Upper Caves zone layouts 13808 | -7/Lower Caves | Learned location of 2 exits from Upper Caves 13857 | -7/Lower Caves | Spotted RT-OWY(f) 13858 | -7/Lower Caves | Spotted EV-RKP(f) 13859 | -7/Lower Caves | Encountered a Master Thief 13859 | -7/Lower Caves | Encountered a Master Thief 13859 | -7/Lower Caves | Spotted VS-B1V(f) 13860 | -7/Lower Caves | Encountered a Master Thief 13860 | -7/Lower Caves | Spotted YO-6MV(f) 13861 | -7/Lower Caves | Encountered a Master Thief 13861 | -7/Lower Caves | Deploy-a-Sentry stolen by Master Thief 13861 | -7/Lower Caves | Latent Energy Streamer stolen by Master Thief 13864 | -7/Lower Caves | Lightpack 2.0 stolen by Master Thief 13877 | -7/Lower Caves | Imp. Cooling System stolen by Master Thief 13883 | -7/Lower Caves | Destroyed VS-B1V(f) 13918 | -7/Lower Caves | Discovered new exit (range 12) 13950 | -7/Lower Caves | Identified exit to Data Miner 14060 | -7/Lower Caves | Entered Data Miner 14060 | -7/Data Miner | Discovered new exit (range 6) 14085 | -7/Data Miner | Met Data Miner 14130 | -7/Data Miner | Interfaced with the Data Conduit 14225 | -7/Data Miner | Identified exit to Proximity Caves 14227 | -7/Data Miner | Entered Proximity Caves 14285 | -6/Proximity Caves | Spotted B-75 Beast 14392 | -6/Proximity Caves | Build established: Scavenger-Mutant 14628 | -6/Proximity Caves | Discovered exit to Factory (range 3) 14681 | -6/Proximity Caves | Entered Factory 14681 | -6/Factory | Evolved 2 slots: Propulsion x1, Utility x1 14682 | -6/Factory | Identified exit to Factory 14684 | -6/Factory | Loaded intel: 231 machine locations 15031 | -6/Factory | First assault squad dispatched 15075 | -6/Factory | Identified exit to Garrison 15075 | -6/Factory | Entered Garrison 15076 | -6/Garrison | Loaded intel: 21 machine locations 15113 | -6/Garrison | Phase Generator disabled 15153 | -6/Garrison | Build established: Mutant 15425 | -6/Garrison | Garrison Relay disabled 15432 | -6/Garrison | Triggered checkpoint 15944 | -6/Garrison | Discovered new exit (range 9) 15952 | -6/Garrison | Identified exit to Factory 15959 | -6/Garrison | Expanded RIF knowledge: Patrol Navigation 16032 | -6/Garrison | Triggered checkpoint 16091 | -6/Garrison | Discovered exit to Factory (range 9) 16096 | -6/Garrison | Triggered checkpoint 16131 | -6/Garrison | Garrison Relay disabled 16155 | -6/Garrison | Triggered checkpoint 16163 | -6/Garrison | Garrison Relay disabled 16271 | -6/Garrison | Entered Factory 16272 | -6/Factory | Loaded intel: 282 machine locations 16370 | -6/Factory | Build established: Bothacker-Mutant 16708 | -6/Factory | Fabricated Adv. Myomer Leg (x1) 16758 | -6/Factory | Fabricated Adv. Myomer Leg (x1) 16855 | -6/Factory | Discovered new exit (range 16) 16864 | -6/Factory | Identified exit to Garrison 16865 | -6/Factory | Entered Garrison 16866 | -6/Garrison | Loaded intel: 22 machine locations 17262 | -6/Garrison | Build established: Scavenger-Gunner 17278 | -6/Garrison | Triggered checkpoint 17290 | -6/Garrison | Triggered checkpoint 17321 | -6/Garrison | Discovered exit to Factory (range 15) 17343 | -6/Garrison | Expanded RIF knowledge: Autoassimilate 17434 | -6/Garrison | Garrison Relay disabled 17540 | -6/Garrison | Discovered exit to Factory (range 14) 17674 | -6/Garrison | Entered Factory 17674 | -5/Factory | Accompanied by 1 ally 17674 | -5/Factory | Evolved 2 slots: Utility x2 17675 | -5/Factory | Identified exit to Upper Caves 17676 | -5/Factory | Loaded intel: 268 machine locations 17699 | -5/Factory | Build established: Bothacker-Mutant 17930 | -5/Factory | Identified exit to Garrison 17930 | -5/Factory | Entered Garrison 17931 | -5/Garrison | Loaded intel: 22 machine locations 18024 | -5/Garrison | Triggered checkpoint 18054 | -5/Garrison | Triggered checkpoint 18089 | -5/Garrison | Garrison Relay disabled 18182 | -5/Garrison | System corruption reached 10% 18226 | -5/Garrison | Triggered checkpoint 18318 | -5/Garrison | Destroyed 8 combat bots 18378 | -5/Garrison | Discovered new exit (range 11) 18389 | -5/Garrison | Identified exit to Factory 18396 | -5/Garrison | Expanded RIF knowledge: Autooverride 18546 | -5/Garrison | Triggered checkpoint 18574 | -5/Garrison | Garrison Relay disabled 18646 | -5/Garrison | Entered Factory 18646 | -4/Factory | Evolved 2 slots: Power x1, Propulsion x1 18647 | -4/Factory | Identified exit to Extension 18648 | -4/Factory | Loaded intel: 277 machine locations 18846 | -4/Factory | Discovered new exit (range 13) 18998 | -4/Factory | Sucked down chute 18998 | -4/Factory | Entered Waste 19013 | -4/Waste | EMP discharged 19036 | -4/Waste | Spotted C-40 Crusher 19038 | -4/Waste | Destroyed C-40 Crusher 19044 | -4/Waste | Spotted C-40 Crusher 19046 | -4/Waste | Destroyed C-40 Crusher 19052 | -4/Waste | Found Damper Plating 19054 | -4/Waste | Spotted C-40 Crusher 19054 | -4/Waste | Spotted C-40 Crusher 19113 | -4/Waste | EMP discharged 19114 | -4/Waste | Destroyed C-40 Crusher 19188 | -4/Waste | Destroyed C-40 Crusher 19194 | -4/Waste | Spotted C-40 Crusher 19213 | -4/Waste | EMP discharged 19238 | -4/Waste | Destroyed C-40 Crusher 19251 | -4/Waste | Found Damper Plating 19308 | -4/Waste | Spotted C-40 Crusher 19313 | -4/Waste | EMP discharged 19372 | -4/Waste | Destroyed C-40 Crusher 19413 | -4/Waste | EMP discharged 19513 | -4/Waste | EMP discharged 19539 | -4/Waste | Discovered new exit (range 13) 19574 | -4/Waste | Identified exit to Factory 19575 | -4/Waste | Entered Factory 19576 | -4/Factory | Loaded intel: 227 machine locations 19628 | -4/Factory | Discovered new exit (range 7) 19654 | -4/Factory | Identified exit to Upper Caves 19825 | -4/Factory | First assault squad dispatched 20062 | -4/Factory | Destroyed 9 combat bots 20407 | -4/Factory | System corruption reached 10% 20673 | -4/Factory | Identified exit to Garrison 20699 | -4/Factory | Entered Garrison 20700 | -4/Garrison | Loaded intel: 17 machine locations 20707 | -4/Garrison | Expanded RIF knowledge: Autooverride 20764 | -4/Garrison | Garrison Relay disabled 20832 | -4/Garrison | Triggered checkpoint 20834 | -4/Garrison | Triggered checkpoint 20836 | -4/Garrison | Spotted B-86 Titan 20883 | -4/Garrison | Destroyed 8 combat bots 20883 | -4/Garrison | Destroyed B-86 Titan 20940 | -4/Garrison | Lost 4 parts (1p2n1w) 21027 | -4/Garrison | Discovered new exit (range 5) 21068 | -4/Garrison | Triggered checkpoint 21090 | -4/Garrison | Garrison Relay disabled 21206 | -4/Garrison | Discovered new exit (range 10) 21376 | -4/Garrison | Triggered checkpoint 21413 | -4/Garrison | Garrison Relay disabled 21447 | -4/Garrison | Discovered new exit (range 11) 21541 | -4/Garrison | Entered Factory 21541 | -4/Factory | Accompanied by 4 allies 21542 | -4/Factory | Loaded intel: 256 machine locations 21584 | -4/Factory | Spotted B-86 Titan 21597 | -4/Factory | Hijacked Titan 7a control node with streamctrl_high 21605 | -4/Factory | Destroyed Titan 7a 21802 | -4/Factory | Discovered new exit (range 3) 22041 | -4/Factory | First assault squad dispatched 22140 | -4/Factory | Identified exit to Garrison 22140 | -4/Factory | Entered Garrison 22141 | -4/Garrison | Loaded intel: 19 machine locations 22322 | -4/Garrison | Spotted B-86 Titan 22392 | -4/Garrison | Triggered checkpoint 22438 | -4/Garrison | Garrison Relay disabled 22500 | -4/Garrison | Triggered checkpoint 22661 | -4/Garrison | Destroyed B-86 Titan 22706 | -4/Garrison | Triggered checkpoint 22710 | -4/Garrison | Triggered checkpoint 22723 | -4/Garrison | Triggered checkpoint 22756 | -4/Garrison | Destroyed 7 combat bots 22795 | -4/Garrison | Discovered new exit (range 10) 22812 | -4/Garrison | Expanded RIF knowledge: Coupler Efficiency 22842 | -4/Garrison | Garrison Relay disabled 22985 | -4/Garrison | Garrison Relay disabled 23276 | -4/Garrison | Build established: Botlord-Mutant 23304 | -4/Garrison | Triggered checkpoint 23329 | -4/Garrison | Entered Research 23329 | -3/Research | Accompanied by 2 allies 23329 | -3/Research | Evolved 2 slots: Utility x1, Weapon x1 23330 | -3/Research | Loaded intel: 97 machine locations 23815 | -3/Research | Intercept squad dispatched 23825 | -3/Research | Spotted Tracker 23827 | -3/Research | Spotted Tracker 23837 | -3/Research | Allies destroyed Tracker 23838 | -3/Research | Spotted Combat Programmer 23839 | -3/Research | Allies destroyed Tracker 23853 | -3/Research | Spotted Combat Programmer 23858 | -3/Research | First assault squad dispatched 23882 | -3/Research | Destroyed Combat Programmer 23885 | -3/Research | Destroyed Combat Programmer 23973 | -3/Research | Identified exit to Garrison 23973 | -3/Research | Entered Garrison 23974 | -3/Garrison | Loaded intel: 21 machine locations 23979 | -3/Garrison | Expanded RIF knowledge: Autoassimilate 24095 | -3/Garrison | Triggered checkpoint 24140 | -3/Garrison | Garrison Relay disabled 24181 | -3/Garrison | Found Gamma Bomb Array 24184 | -3/Garrison | Found Gamma Bomb Array 24189 | -3/Garrison | Found Gamma Bomb Array 24256 | -3/Garrison | Spotted B-86 Titan 24414 | -3/Garrison | Allies destroyed B-86 Titan 24415 | -3/Garrison | Phase Generator disabled 24574 | -3/Garrison | Triggered checkpoint 24652 | -3/Garrison | Discovered new exit (range 11) 24707 | -3/Garrison | Triggered checkpoint 24758 | -3/Garrison | Garrison Relay disabled 24799 | -3/Garrison | Entered Research 24799 | -2/Research | Evolved 2 slots: Utility x2 24800 | -2/Research | Loaded intel: 102 machine locations 25016 | -2/Research | Found Enh. Gamma Bomb Array 25022 | -2/Research | Found Enh. Gamma Bomb Array 25026 | -2/Research | Found Enh. Gamma Bomb Array 25210 | -2/Research | Spotted B-90 Cyclops 25315 | -2/Research | Lost 4 parts (1p1n1u1w) 25329 | -2/Research | First assault squad dispatched 25482 | -2/Research | Released all parts (4) 25484 | -2/Research | Core integrity fell below 50% 25494 | -2/Research | Core integrity fell below 20% 25505 | -2/Research | Destroyed by Gamma Bomb Trap Last Messages --------------- 25490_ Penetrated by Slug. 25493_ Slug penetrates Wall. 25493_ Penetrated by Slug. 25494_ Slammed into H-88 Terminator. 25496_ Penetrated by Slug. 25496_ Slug penetrates Wall. 25496_ Slug penetrates H-88 Terminator. 25496_ Detecting nearby Garrison Access. 25498_ Penetrated by Slug. 25499_ Slug penetrates Wall. 25499_ K-01 Serf suffers critical hit. 25499_ K-01 Serf destroyed. 25499_ Slug penetrates Wall. 25500_ K-01 Serf collects debris. 25501_ Penetrated by Slug. 25501_ RIF reveals location of hidden door. 25501_ Penetrated by Slug. 25502_ RIF reveals location of hidden door. 25505_ Triggered Gamma Bomb Trap. 25505_ A bubble of electromagnetic force engulfs the area. Map ----- +----------------------------------------------------+ | ?????????????????????????????????????????????????? | | ?????????????????????????????????????????????????? | | ?????????????????????????????????????????????????? | | ?????????????????????????????????????????????????? | | ??????????????????????????"""""""""""????????????? | | ??????????????????????????"??"?"?"??"????????????? | | ??????????????????????????""???????""????????????? | | ??????????????????????????"?????????"????????????? | | ??????????????????????????""???????""????????????? | | ?????????????????????????????????????????????????? | | ????????????????????????"""""?????"""""??????????? | | ?????????????????????????????????????????????????? | | ??????????????????????""""""""???""""""""????????? | | ?????????????????????????????????T???????????????? | | ???????! ! ???????????????????????????????????? | | ??????? ???????????????????????????????????? | | ??????? ]???????????????????????????????????? | | ??????####+###################???????????????????? | | ??????? ???????????????????? | | ??????? ???????????????????? | | ??????? ???????????????????? | | ??????? """"" ||= #####??????????????????? | | ??????? """"" |=! ######?#???????????????? | | ??????? """"" |= # """G"""???????????? | | ??????? k # """ """ ??????????? | | ??????? @# #????????? | | ??????? + #????????? | | ??????? # #????????? | | ??????##+############## # = #????????? | | ??????? ??#### # ##############?????##### | | ???????????+ / # #????????????####### | | ???????????????# w ############## # | | ???"""?????????# # =%! "T # | | ???"""?????????# ! # = "" # | | ???"""?????????# # # | | ???????????????##############+########## # | | ??????????????????????????# #?????## ## ! | | ??????????????????????????#* ######## ## ! | | ??????????????????????????# # # ## ! | | ??????????????????????????# # * " ## | | ??????????????????????????# # = # ## = | | ??????????????????????????# # # ## ]= | | ??????????????????????????#+#########"### ## [= | | ??????????????????????????# #???# # [= | | ??????????????????????????#?#???#[ *%=! # === | | ??????????????????"""???????????# ![! ####= | | ??????????????????"Y"?????????###!!! !!!]!#?# # | | ??????????????????"?"?????????# !!! [!!=!#?### | | ??????????????????????????????# !! ]/%###### | | ??????????????????????????????### %!!#%%! = | +----------------------------------------------------+ Best States ------------- Heat Dissipation 84 Coolant Potential 100 Energy Generation 43 Energy Capacity 1125 Matter Stores 300 Matter Capacity 300 Sight Range 18 Robot Scan Range 16 Terrain Scan Density 10 Jamming Range 16 Additional Mass Support 12 Armor Coverage 1200 Resistance: KI 20 Resistance: TH 20 Resistance: EX 20 Resistance: EM 90 Resistance: I 20 Resistance: S 20 Resistance: P 20 Propulsion Shielding 66 Utility Shielding 66 Melee Speed Boost 20 Phase Shifting 15 Evasion (%) 55 Targeting Accuracy 5 Target Analysis 8 Armor Integrity Analysis 66 Recoil Reduction 2 Kinecelleration 40 Offensive Hacking 20 Defensive Hacking 20 Relay Coupler Types 92 Relay Coupler Value 4 Item Schematics ----------------- Enh. Autogun | -9/Materials | Scanalyzed Adv. Myomer Leg | -8/Materials | Scanalyzed Imp. Utility Shielding | -7/Factory | Scanalyzed Imp. Hardlight Generator | -7/Factory | Hacked Adv. Focal Shield | -6/Factory | Hacked Robot Schematics ------------------ Y-54 Guardian | -7/Factory | Hacked Fabricated ------------ Y-54 Guardian | x2 | -7/Factory Adv. Myomer Leg | x1 | -6/Factory Adv. Myomer Leg | x1 | -6/Factory Alien Tech Used ----------------- None Achievements -------------- None Challenges ------------ None Game ------ Seed OpticalAngularScreen Manual? 0 Play Time 04:53:52 Cumulative 169.9 hours Start 2020.11.21 @ 05:42:29 End 2020.11.21 @ 10:42:02 Sessions 1 Manual Loads 0 Difficulty Rogue Special Mode Halloween2020/ForbiddenLore Game No. 55 Rogue 40 Adventurer 15 Explorer 0 Win Type - Total 5 Types 2/0/1/1/1/0/0/0/0 Lore% 80 Gallery% 80 Achievement% 67 Wizard Run 0 Options --------- ASCII 0 Keyboard 0 Movement Numpad Keybinds 0 Fullscreen 1 Font 18/SmallcapsGlow Map View 76x50 Tactical HUD 1 Map Filters NONE Filters NONE Steam 1 RUN: 62080396-33d7-4247-b315-7cd9a0922288